Workbook

Sheet паспорт
A1: ПАТ "УКРТРАНСГАЗ" | G1: ПАСПОРТ ФІЗИКО-ХІМІЧНИХ ПОКАЗНИКІВ ПРИРОДНОГО ГАЗУ № 174
A2: Філія "УМГ "КИЇВТРАНСГАЗ" | G2: переданого Сумським ЛВУМГ та прийнятого ПАТ "Сумигаз", ПАТ «Сумське НВО»
A3: Сумського ЛВУМГ | G3: Маршрут № 174
A4: Вимірювальна хіміко-аналітична лабораторія
A5: Свідоцтво № РУ-0053/17 чинне до 10 травня 2022 р. | J5: по газопроводу Єлець-Курськ-Київ, Єлець-Курськ-Диканька, Більськ-Суми | V5: за період з | X5: 2017-05-01 | Z5: по | AA5: 2017-05-31
A7: Число місяця | B7: Компонентний склад, % мол. | N7: Фізико-хімічні показники газу обчислені на основі компонентного складу, 101,325 кПа | X7: Температура точки роси за вологою (Р = 3.92 МПа), °С | Y7: Температура точки роси за вуглеводнями, °С | Z7: Вміст сірководню, г/м3 | AA7: Вміст меркаптанової сірки, г/м3 | AB7: Вміст механічних домішок, г/м3
N8: Густина абсолютна, кг/м3,при 20 ºС, | O8: Температура вимірювання/згоряння при 20/25°С
B9: метан, С1 | C9: етан, С2 | D9: пропан, С3 | E9: ізо-бутан, і-С4 | F9: н-бутан, н-С4 | G9: нео-пентан, нео-С5 | H9: ізо-пентан, і-С5 | I9: н-пентан, н-С5 | J9: гексани та вищі, С6+ | K9: кисень, О2 | L9: азот, N2 | M9: діоксид вуглецю, CО2 | O9: Теплота згоряння нижча | R9: Теплота згоряння вища | U9: Число Воббе вище
O10: ккал/м3 | P10: МДж/м3 | Q10: кВт⋅год/м3 | R10: ккал/м3 | S10: МДж/м3 | T10: кВт⋅год/м3 | U10: ккал/м3 | V10: МДж/м3 | W10: кВт⋅год/м3
A11: 1 | O11: =P11*238.8459 -> 8259.291222 | P11: 34.58 | Q11: =P11/3.6 -> 9.605555556 | R11: =S11*238.8459 -> 9145.409511 | S11: 38.29 | T11: =S11/3.6 -> 10.63611111 | AC11: =SUM(B11:M11)+$K$42+$N$42 -> 0
A12: 2 | O12: =P12*238.8459 -> 8259.291222 | P12: 34.58 | Q12: =P12/3.6 -> 9.605555556 | R12: =S12*238.8459 -> 9145.409511 | S12: 38.29 | T12: =S12/3.6 -> 10.63611111 | AC12: 0
A13: 3 | B13: 91.0214 | C13: 4.421 | D13: 1.041 | E13: 0.118 | F13: 0.183 | G13: 0.0071 | H13: 0.048 | I13: 0.041 | J13: 0.094 | K13: 0.0085 | L13: 2.07 | M13: 0.947 | N13: 0.7381 | O13: =P13*238.8459 -> 8256.902763 | P13: 34.57 | Q13: =P13/3.6 -> 9.602777778 | R13: =S13*238.8459 -> 9143.021052 | S13: 38.28 | T13: =S13/3.6 -> 10.63333333 | U13: =V13*238.8459 -> 11679.56451 | V13: 48.9 | W13: =V13/3.6 -> 13.58333333 | X13: -8.8 | Z13: 0 | AA13: <0,01 | AB13: 0 | AC13: 100 | AD13: =IF(AC13=100,"ОК"," ") -> ОК
A14: 4 | O14: 8256.902763 | P14: 34.57 | Q14: 9.602777778 | R14: 9143.021052 | S14: 38.28 | T14: 10.63333333 | AC14: 0 | AD14: =IF(AC14=100,"ОК"," ") -> 
A15: 5 | O15: 8256.902763 | P15: 34.57 | Q15: 9.602777778 | R15: 9143.021052 | S15: 38.28 | T15: 10.63333333 | AC15: 0
A16: 6 | O16: 8256.902763 | P16: 34.57 | Q16: 9.602777778 | R16: 9143.021052 | S16: 38.28 | T16: 10.63333333 | AC16: 0
A17: 7 | O17: 8256.902763 | P17: 34.57 | Q17: 9.602777778 | R17: 9143.021052 | S17: 38.28 | T17: 10.63333333 | AC17: 0
A18: 8 | O18: 8256.902763 | P18: 34.57 | Q18: 9.602777778 | R18: 9143.021052 | S18: 38.28 | T18: 10.63333333 | AC18: 0
A19: 9 | O19: 8256.902763 | P19: 34.57 | Q19: 9.602777778 | R19: 9143.021052 | S19: 38.28 | T19: 10.63333333 | AC19: 0
A20: 10 | B20: 90.7746 | C20: 4.472 | D20: 1.13 | E20: 0.126 | F20: 0.199 | G20: 0.0073 | H20: 0.054 | I20: 0.047 | J20: 0.107 | K20: 0.0081 | L20: 2.104 | M20: 0.971 | N20: 0.741 | O20: 8278.398894 | P20: 34.66 | Q20: 9.627777778 | R20: 9164.517183 | S20: 38.37 | T20: 10.65833333 | U20: =V20*238.8459 -> 11684.34143 | V20: 48.92 | W20: =V20/3.6 -> 13.58888889 | X20: -10.2 | Y20: -12 | AC20: 100 | AD20: ОК
A21: 11 | O21: 8278.398894 | P21: 34.66 | Q21: 9.627777778 | R21: 9164.517183 | S21: 38.37 | T21: 10.65833333 | AC21: 0
A22: 12 | O22: 8278.398894 | P22: 34.66 | Q22: 9.627777778 | R22: 9164.517183 | S22: 38.37 | T22: 10.65833333 | AC22: 0
A23: 13 | O23: 8278.398894 | P23: 34.66 | Q23: 9.627777778 | R23: 9164.517183 | S23: 38.37 | T23: 10.65833333 | AC23: 0
A24: 14 | O24: =P24*238.8459 -> 8278.398894 | P24: 34.66 | Q24: =P24/3.6 -> 9.627777778 | R24: 9164.517183 | S24: 38.37 | T24: =S24/3.6 -> 10.65833333 | AC24: 0
A25: 15 | B25: 90.9444 | C25: 4.448 | D25: 1.04 | E25: 0.118 | F25: 0.185 | G25: 0.0071 | H25: 0.049 | I25: 0.041 | J25: 0.089 | K25: 0.0085 | L25: 2.115 | M25: 0.955 | N25: 0.7385 | O25: 8254.514304 | P25: 34.56 | Q25: 9.6 | R25: 9138.244134 | S25: 38.26 | T25: 10.62777778 | U25: =V25*238.8459 -> 11670.01067 | V25: 48.86 | W25: =V25/3.6 -> 13.57222222 | X25: -9 | Y25: -11.1 | AC25: 100 | AD25: ОК
A26: 16 | O26: 8254.514304 | P26: 34.56 | Q26: 9.6 | R26: 9138.244134 | S26: 38.26 | T26: 10.62777778 | AC26: 0
A27: 17 | O27: 8254.514304 | P27: 34.56 | Q27: 9.6 | R27: 9138.244134 | S27: 38.26 | T27: 10.62777778 | AC27: 0
A28: 18 | O28: 8254.514304 | P28: 34.56 | Q28: 9.6 | R28: 9138.244134 | S28: 38.26 | T28: 10.62777778 | AC28: 0
A29: 19 | O29: 8254.514304 | P29: 34.56 | Q29: 9.6 | R29: 9138.244134 | S29: 38.26 | T29: 10.62777778 | AC29: 0
A30: 20 | O30: =P30*238.8459 -> 8254.514304 | P30: 34.56 | Q30: 9.6 | R30: 9138.244134 | S30: 38.26 | T30: 10.62777778 | AC30: 0 | AD30: =IF(AC30=100,"ОК"," ") -> 
A31: 21 | O31: 8254.514304 | P31: 34.56 | Q31: 9.6 | R31: 9138.244134 | S31: 38.26 | T31: 10.62777778 | AC31: 0
A32: 22 | B32: 90.9124 | C32: 4.473 | D32: 1.068 | E32: 0.121 | F32: 0.19 | G32: 0.007 | H32: 0.05 | I32: 0.043 | J32: 0.092 | K32: 0.0086 | L32: 2.079 | M32: 0.956 | N32: 0.7391 | O32: 8264.06814 | P32: 34.6 | Q32: 9.611111111 | R32: 9150.186429 | S32: 38.31 | T32: 10.64166667 | U32: =V32*238.8459 -> 11681.95297 | V32: 48.91 | W32: =V32/3.6 -> 13.58611111 | X32: -14.3 | Y32: -15.7 | AC32: 100 | AD32: ОК
A33: 23 | O33: 8264.06814 | P33: 34.6 | Q33: 9.611111111 | R33: 9150.186429 | S33: 38.31 | T33: 10.64166667 | AC33: 0 | AD33: =IF(AC33=100,"ОК"," ") -> 
A34: 24 | O34: 8264.06814 | P34: 34.6 | Q34: 9.611111111 | R34: 9150.186429 | S34: 38.31 | T34: 10.64166667 | AC34: 0
A35: 25 | O35: 8264.06814 | P35: 34.6 | Q35: 9.611111111 | R35: 9150.186429 | S35: 38.31 | T35: 10.64166667 | AC35: 0
A36: 26 | O36: 8264.06814 | P36: 34.6 | Q36: 9.611111111 | R36: 9150.186429 | S36: 38.31 | T36: 10.64166667 | AC36: 0
A37: 27 | O37: 8264.06814 | P37: 34.6 | Q37: 9.611111111 | R37: 9150.186429 | S37: 38.31 | T37: 10.64166667 | AC37: 0
A38: 28 | O38: 8264.06814 | P38: 34.6 | Q38: 9.611111111 | R38: 9150.186429 | S38: 38.31 | T38: 10.64166667 | AC38: 0
A39: 29 | B39: 90.7992 | C39: 4.48 | D39: 1.094 | E39: 0.125 | F39: 0.201 | G39: 0.0073 | H39: 0.054 | I39: 0.047 | J39: 0.101 | K39: 0.0085 | L39: 2.121 | M39: 0.962 | N39: 0.7404 | O39: 8271.233517 | P39: 34.63 | Q39: 9.619444444 | R39: 9157.351806 | S39: 38.34 | T39: 10.65 | U39: =V39*238.8459 -> 11679.56451 | V39: 48.9 | W39: =V39/3.6 -> 13.58333333 | X39: -10 | Y39: -12.1 | AC39: 100
A40: 30 | O40: =P40*238.8459 -> 8271.233517 | P40: 34.63 | Q40: =P40/3.6 -> 9.619444444 | R40: =S40*238.8459 -> 9157.351806 | S40: 38.34 | T40: =S40/3.6 -> 10.65 | AC40: 0
A41: 31 | O41: 8271.233517 | P41: 34.63 | Q41: 9.619444444 | R41: 9157.351806 | S41: 38.34 | T41: 10.65 | AC41: 0
A42: Рівень одоризації відповідає чинним нормативним документам | O42: 8263.609773 | P42: 34.59808091 | Q42: 9.610578031 | R42: 9149.126215 | S42: 38.3055611 | T42: 10.64043364
H43: Середньозважене значення теплоти згоряння:
B46: Головний інженер Сумського ЛВУМГ Соловйов О.Б. 01.06.2017
C47: Керівник підрозділу підприємства, якому підпорядкована лабораторія | O47: прізвище | R47: підпис | V47: дата
B48: Завідувач ВХАЛ Журавльова В.В. 01.06.2017
C49: Лабораторія, де здійснювалось вимірювання газу | O49: прізвище | R49: підпис | V49: дата
B50: Начальник служби ГВ та М Соловйов А.І. 01.06.2017
C51: Метрологічна служба, яка вимірює обсяги газу | O51: прізвище | R51: підпис | V51: дата

Sheet розрахунок
AG1: ё
A2: Додаток до Паспорту фізико-хімічних показників природного газу по маршруту № 174
A4: Число місяця | B4: Теплота згоряння вища, МДж/м3 | C4: Сумська область | AG4: Загальний обсяг газу, м3
C5: Обсяг газу переданого за добу, м3
C6: ГРС Cуми-1 | D6: ГРС Cуми-2 | E6: ПАТ «Сумське НВО» | F6: ГРС Низи | G6: ГРС Бішкінь | H6: ГРС Тростянець | I6: ГРС Косівщина | J6: ГРС Старе (червоне) Село | K6: ГРС Дослідна станція | L6: ГРС Ворожба | M6: ГРС Загорське | N6: ГРС Хотінь | O6: ГРС Юнаківка | P6: ГРС Краснопілля | Q6: ГРС Осоївка | R6: ГРС Могриця | S6: ГРС Угроїди | T6: ГРС Калинівка | U6: ГРС Віри | V6: ГРС Білопілля | W6: ГРС Путивль | X6: ГРС Буринь | Y6: ГРС Дубов'язівка | Z6: ГРС Конотоп | AA6: ГРС Головашівка | AB6: ГРС Мартинівка | AC6: ГРС Олешня | AD6: ГРС Гринцеве | AE6: ГРС Колядинець | AF6: ГРС Липова Долина
A7: 1 | B7: =паспорт!S11 -> 38.29 | C7: 343442.875 | D7: 0 | E7: 0 | F7: 1343.7643 | G7: 216.3826 | H7: 9776.9268 | I7: 0 | J7: 0 | K7: 0 | L7: 1498.1517 | M7: 2198.7622 | N7: 4182.4316 | O7: 1685.114 | P7: 5273.0352 | Q7: 1296.9824 | R7: 3.9978 | S7: 3227.2019 | T7: 0 | U7: 1607.6578 | V7: 6820.3789 | W7: 5601.811 | X7: 12218.4414 | Y7: 2781.9741 | Z7: 26173.582 | AA7: 372.6656 | AB7: 262.9366 | AC7: 522.7463 | AD7: 2156.0781 | AE7: 1896.113 | AF7: 4809.6865 | AG7: =SUM(C7:AF7) -> 439369.6968
A8: 2 | B8: =паспорт!S12 -> 38.29 | C8: 348314.2813 | D8: 0 | E8: 0 | F8: 1323.6786 | G8: 249.4239 | H8: 10782.2354 | I8: 0 | J8: 0 | K8: 0 | L8: 1470.2205 | M8: 2464.0649 | N8: 5537.5161 | O8: 1636.1798 | P8: 5077.2461 | Q8: 1218.2529 | R8: 0 | S8: 3095.4458 | T8: 0 | U8: 1541.5942 | V8: 6901.7612 | W8: 5645.5581 | X8: 13960.7012 | Y8: 2884.2854 | Z8: 30639.5938 | AA8: 342.482 | AB8: 234.364 | AC8: 543.641 | AD8: 2099.5046 | AE8: 1825.9814 | AF8: 4569.6567 | AG8: =SUM(C8:AF8) -> 452357.6689
A9: 3 | B9: =паспорт!S13 -> 38.28 | C9: 396379.0313 | D9: 0 | E9: 0 | F9: 1192.9182 | G9: 239.158 | H9: 13952.4951 | I9: 0 | J9: 0 | K9: 0 | L9: 1415.2218 | M9: 3310.7483 | N9: 5567.7969 | O9: 1608.9548 | P9: 4671.8184 | Q9: 1207.3757 | R9: 4.0274 | S9: 4466.79 | T9: 0 | U9: 1462.4609 | V9: 6728.8413 | W9: 5248.4932 | X9: 11515.9502 | Y9: 2761.3813 | Z9: 35684.3398 | AA9: 325.4226 | AB9: 225.4313 | AC9: 472.1064 | AD9: 2042.8623 | AE9: 1728.7194 | AF9: 4666.9194 | AG9: =SUM(C9:AF9) -> 506879.264
A10: 4 | B10: =паспорт!S14 -> 38.28 | C10: 390313.5 | D10: 0 | E10: 0 | F10: 1272.6454 | G10: 258.4374 | H10: 16527.3281 | I10: 0 | J10: 0 | K10: 0 | L10: 1535.2942 | M10: 3353.0686 | N10: 5941.8521 | O10: 1767.4923 | P10: 5181.3486 | Q10: 1308.0804 | R10: 3.0822 | S10: 4274.4697 | T10: 0 | U10: 1657.4344 | V10: 7282.8037 | W10: 7385.4346 | X10: 13655.4258 | Y10: 2959.9204 | Z10: 35787.5117 | AA10: 389.6142 | AB10: 252.6049 | AC10: 499.5417 | AD10: 2271.7229 | AE10: 1830.5311 | AF10: 4871.8052 | AG10: 510580.9496
A11: 5 | B11: =паспорт!S15 -> 38.28 | C11: 394630.6875 | D11: 0 | E11: 0 | F11: 1472.7902 | G11: 324.3615 | H11: 16174.417 | I11: 0 | J11: 0 | K11: 0 | L11: 1689.9734 | M11: 3137.1641 | N11: 6335.2632 | O11: 2013.8859 | P11: 5677.7051 | Q11: 1567.6602 | R11: 36.5889 | S11: 3632.4363 | T11: 0 | U11: 1813.973 | V11: 7784.3481 | W11: 7796.9829 | X11: 11351.8359 | Y11: 4392.5381 | Z11: 36007.0273 | AA11: 440.3832 | AB11: 278.4659 | AC11: 553.281 | AD11: 2428.7368 | AE11: 1917.1831 | AF11: 4945.0054 | AG11: 516402.694
A12: 6 | B12: =паспорт!S16 -> 38.28 | C12: 375851.25 | D12: 0 | E12: 0 | F12: 1527.2423 | G12: 337.1086 | H12: 13143.8193 | I12: 0 | J12: 0 | K12: 0 | L12: 1695.9177 | M12: 2613.3684 | N12: 6449.2563 | O12: 1947.7549 | P12: 6208.6851 | Q12: 1561.3458 | R12: 24.626 | S12: 3365.5254 | T12: 0 | U12: 1936.5886 | V12: 7667.3325 | W12: 7542.9751 | X12: 12453.0537 | Y12: 2891.1323 | Z12: 28421.2695 | AA12: 442.7545 | AB12: 243.0624 | AC12: 571.8158 | AD12: 2393.3052 | AE12: 1903.6831 | AF12: 5145.2373 | AG12: 486338.1098
A13: 7 | B13: =паспорт!S17 -> 38.28 | C13: 369711.25 | D13: 0 | E13: 0 | F13: 1383.7334 | G13: 252.3768 | H13: 11680.0518 | I13: 0 | J13: 0 | K13: 0 | L13: 1505.2662 | M13: 2057.3887 | N13: 5809.7476 | O13: 1783.024 | P13: 5556.8892 | Q13: 1344.1862 | R13: 25.2982 | S13: 3237.4871 | T13: 0 | U13: 1615.6643 | V13: 6906.5449 | W13: 6650.4897 | X13: 11336.8408 | Y13: 2753.78 | Z13: 26639.4336 | AA13: 391.0546 | AB13: 291.5488 | AC13: 531.1031 | AD13: 2208.6326 | AE13: 1789.1853 | AF13: 4473.2954 | AG13: 469934.2723
A14: 8 | B14: =паспорт!S18 -> 38.28 | C14: 353323.6563 | D14: 0 | E14: 0 | F14: 1516.7294 | G14: 285.6895 | H14: 12380.0791 | I14: 0 | J14: 0 | K14: 0 | L14: 1552.1884 | M14: 2884.6746 | N14: 6175.5566 | O14: 1847.9473 | P14: 5230.4502 | Q14: 1266.7327 | R14: 0 | S14: 3746.0488 | T14: 0 | U14: 1736.4603 | V14: 7740.9048 | W14: 7471.3062 | X14: 10179.4717 | Y14: 3036.5139 | Z14: 28042.8555 | AA14: 480.0282 | AB14: 257.2861 | AC14: 554.6378 | AD14: 2457.6509 | AE14: 1907.9297 | AF14: 4620.269 | AG14: 458695.067
A15: 9 | B15: =паспорт!S19 -> 38.28 | C15: 381798.3125 | D15: 0 | E15: 0 | F15: 2097.4744 | G15: 395.6512 | H15: 17768.8555 | I15: 0 | J15: 0 | K15: 0 | L15: 2035.649 | M15: 2842.9497 | N15: 8227.749 | O15: 2617.9644 | P15: 6441.1157 | Q15: 1804.7214 | R15: 88.4603 | S15: 3525.3335 | T15: 0 | U15: 2256.1294 | V15: 10894.0693 | W15: 11358.4521 | X15: 15131.1299 | Y15: 4065.1572 | Z15: 40030.2617 | AA15: 648.5718 | AB15: 376.0794 | AC15: 713.769 | AD15: 3293.2573 | AE15: 2586.9817 | AF15: 6315.9453 | AG15: 527314.0407
A16: 10 | B16: =паспорт!S20 -> 38.37 | C16: 432946.0938 | D16: 0 | E16: 0 | F16: 3069.0042 | G16: 689.4302 | H16: 25696.2129 | I16: 0 | J16: 0 | K16: 0 | L16: 2893.0657 | M16: 4058.0955 | N16: 10598.1768 | O16: 3095.4993 | P16: 9762.3154 | Q16: 2289.9778 | R16: 235.6413 | S16: 6370.1538 | T16: 0 | U16: 3381.0674 | V16: 16070.7891 | W16: 15147.8711 | X16: 21250.9277 | Y16: 6198.0483 | Z16: 61459 | AA16: 991.0897 | AB16: 579.3173 | AC16: 1168.9193 | AD16: 5182.999 | AE16: 3939.5852 | AF16: 11349.7969 | AG16: 648423.0777
A17: 11 | B17: =паспорт!S21 -> 38.37 | C17: 480372.0625 | D17: 0 | E17: 0 | F17: 3143.354 | G17: 605.9594 | H17: 25644.3027 | I17: 0 | J17: 0 | K17: 0 | L17: 2812.8235 | M17: 4265.8564 | N17: 11480.6709 | O17: 3365.2817 | P17: 10759.7031 | Q17: 2082.1021 | R17: 277.6006 | S17: 5342.083 | T17: 0 | U17: 3402.5186 | V17: 17065.1543 | W17: 16795.0684 | X17: 21981.5742 | Y17: 18545.2461 | Z17: 68083.5 | AA17: 1075.0981 | AB17: 655.8837 | AC17: 1168.2373 | AD17: 4934.6587 | AE17: 3710.3796 | AF17: 11403.3438 | AG17: 718972.4627
A18: 12 | B18: =паспорт!S22 -> 38.37 | C18: 488296.5938 | D18: 0 | E18: 0 | F18: 3818.0203 | G18: 689.0923 | H18: 29005.8242 | I18: 0 | J18: 0 | K18: 0 | L18: 3038.7024 | M18: 5487.0405 | N18: 14347.0654 | O18: 3723.2329 | P18: 12414.4346 | Q18: 2925.7053 | R18: 488.4007 | S18: 5277.6777 | T18: 0 | U18: 4146.1118 | V18: 18406.4922 | W18: 15409.9355 | X18: 21166.0254 | Y18: 24719.0273 | Z18: 59476.0938 | AA18: 1285.9254 | AB18: 687.2892 | AC18: 1259.2786 | AD18: 5417.813 | AE18: 3680.4663 | AF18: 10959.8252 | AG18: 736126.0738
A19: 13 | B19: =паспорт!S23 -> 38.37 | C19: 519077.2188 | D19: 0 | E19: 0 | F19: 5000.4077 | G19: 943.959 | H19: 32766.8398 | I19: 0 | J19: 0 | K19: 0 | L19: 3808.9377 | M19: 5503.4014 | N19: 17268.7246 | O19: 4823.8379 | P19: 15633.7314 | Q19: 3502.4287 | R19: 596.0737 | S19: 5410.3613 | T19: 0 | U19: 5611.4683 | V19: 25990.2637 | W19: 21633.0039 | X19: 29432.4336 | Y19: 25415.9785 | Z19: 76551.5078 | AA19: 1805.3545 | AB19: 867.1215 | AC19: 1681.3478 | AD19: 6812.5615 | AE19: 4572.771 | AF19: 14199.1191 | AG19: 828908.8532
A20: 14 | B20: =паспорт!S24 -> 38.37 | C20: 509459.5938 | D20: 0 | E20: 0 | F20: 4071.9858 | G20: 755.6148 | H20: 30251.0605 | I20: 0 | J20: 0 | K20: 0 | L20: 3233.4514 | M20: 4630.479 | N20: 13873.7881 | O20: 4112.5396 | P20: 14048.2139 | Q20: 3135.509 | R20: 472.907 | S20: 5237.1753 | T20: 0 | U20: 4202.4609 | V20: 19422.1543 | W20: 15887.1025 | X20: 18040.5059 | Y20: 23466.2031 | Z20: 53106.9414 | AA20: 1268.7531 | AB20: 673.0335 | AC20: 1401.7917 | AD20: 5672.2358 | AE20: 4057.6611 | AF20: 11772.6719 | AG20: 752253.8334
A21: 15 | B21: =паспорт!S25 -> 38.26 | C21: 453761.5625 | D21: 0 | E21: 0 | F21: 2247.3582 | G21: 357.5203 | H21: 21104.7559 | I21: 0 | J21: 0 | K21: 0 | L21: 2086.8105 | M21: 3648.2446 | N21: 8268.7324 | O21: 2544.0698 | P21: 8340.4385 | Q21: 1888.0664 | R21: 131.5454 | S21: 5062.626 | T21: 0 | U21: 2335.8313 | V21: 11554.1348 | W21: 10642.9805 | X21: 12835.5527 | Y21: 20435.5801 | Z21: 38591.1563 | AA21: 671.0677 | AB21: 211.7042 | AC21: 835.0231 | AD21: 3290.625 | AE21: 2409.6428 | AF21: 6735.8765 | AG21: 619990.9055
A22: 16 | B22: =паспорт!S26 -> 38.26 | C22: 452640.3125 | D22: 0 | E22: 0 | F22: 1850.0697 | G22: 274.1808 | H22: 16263.0254 | I22: 0 | J22: 0 | K22: 0 | L22: 1810.2158 | M22: 3869.5996 | N22: 8009.5693 | O22: 2288.8638 | P22: 6638.9019 | Q22: 1596.1702 | R22: 84.1582 | S22: 6161.0728 | T22: 0 | U22: 2168.8562 | V22: 10806.0703 | W22: 10087.875 | X22: 12207.5176 | Y22: 20626.0371 | Z22: 36994.0664 | AA22: 585.4046 | AB22: 312.4756 | AC22: 576.9864 | AD22: 2715.2893 | AE22: 2172.6006 | AF22: 5854.499 | AG22: 606593.8181
A23: 17 | B23: =паспорт!S27 -> 38.26 | C23: 485757.0938 | D23: 0 | E23: 0 | F23: 2959.6626 | G23: 470.1586 | H23: 21229.2949 | I23: 0 | J23: 0 | K23: 0 | L23: 2445.0999 | M23: 4607.9463 | N23: 10597.9678 | O23: 3341.7332 | P23: 9723.4746 | Q23: 2440.1665 | R23: 333.2963 | S23: 4815.8452 | T23: 0 | U23: 3134.9854 | V23: 14910.1904 | W23: 12226.8994 | X23: 17303.3164 | Y23: 20769.375 | Z23: 41890.1563 | AA23: 992.3799 | AB23: 367.5485 | AC23: 875.5869 | AD23: 3870.4678 | AE23: 2575.8621 | AF23: 7545.6235 | AG23: 675184.1313
A24: 18 | B24: =паспорт!S28 -> 38.26 | C24: 475701.875 | D24: 0 | E24: 0 | F24: 3059.717 | G24: 616.3621 | H24: 26317.6172 | I24: 0 | J24: 0 | K24: 0 | L24: 2666.1643 | M24: 4516.0337 | N24: 10601.8809 | O24: 3160.3416 | P24: 10547.918 | Q24: 2370.5825 | R24: 310.5195 | S24: 5403.9238 | T24: 0 | U24: 3206.6716 | V24: 15159.0273 | W24: 13019.1279 | X24: 17739.3691 | Y24: 22377.1387 | Z24: 50728.1523 | AA24: 977.4239 | AB24: 524.9344 | AC24: 1082.9496 | AD24: 3895.123 | AE24: 3003.2671 | AF24: 9564.7109 | AG24: 686550.8314
A25: 19 | B25: =паспорт!S29 -> 38.26 | C25: 477783.125 | D25: 0 | E25: 0 | F25: 3800.2986 | G25: 736.9147 | H25: 28794.3789 | I25: 0 | J25: 0 | K25: 0 | L25: 3020.7622 | M25: 6407.4702 | N25: 12493.2002 | O25: 3428.4355 | P25: 12266.9063 | Q25: 2705.5396 | R25: 438.3329 | S25: 5868.4663 | T25: 0 | U25: 3480.7952 | V25: 14916.9219 | W25: 12256.3203 | X25: 17565.3516 | Y25: 22419.2871 | Z25: 42079.5586 | AA25: 1095.6304 | AB25: 684.9485 | AC25: 1425.4692 | AD25: 4677.0786 | AE25: 3216.0352 | AF25: 9098.627 | AG25: 690659.854
A26: 20 | B26: =паспорт!S30 -> 38.26 | C26: 437103.8438 | D26: 0 | E26: 0 | F26: 2496.1272 | G26: 510.9948 | H26: 20570.1445 | I26: 0 | J26: 0 | K26: 0 | L26: 2300.6211 | M26: 5899.1675 | N26: 8424.6172 | O26: 2545.1118 | P26: 8424.6592 | Q26: 2010.1467 | R26: 187.1661 | S26: 3816.0696 | T26: 0 | U26: 2514.114 | V26: 11382.7383 | W26: 9994.0371 | X26: 13387.6055 | Y26: 21369.1934 | Z26: 34320.5508 | AA26: 747.2966 | AB26: 550.8683 | AC26: 1001.0691 | AD26: 3466.9333 | AE26: 2613.1404 | AF26: 7017.1763 | AG26: 602653.3926
A27: 21 | B27: =паспорт!S31 -> 38.26 | C27: 427708.875 | D27: 0 | E27: 0 | F27: 2067.3972 | G27: 354.7759 | H27: 17840.2637 | I27: 0 | J27: 0 | K27: 0 | L27: 1895.4194 | M27: 4836.0186 | N27: 8022.3135 | O27: 2259.9434 | P27: 7482.978 | Q27: 1628.0564 | R27: 96.2065 | S27: 3650.7383 | T27: 0 | U27: 2162.7605 | V27: 9823.9932 | W27: 9267.6855 | X27: 12232.291 | Y27: 20409.8027 | Z27: 35044.5391 | AA27: 577.6258 | AB27: 383.6474 | AC27: 869.606 | AD27: 3049.2532 | AE27: 2406.8748 | AF27: 6864.9683 | AG27: 580936.0334
A28: 22 | B28: =паспорт!S32 -> 38.31 | C28: 418564.25 | D28: 0 | E28: 0 | F28: 1679.7689 | G28: 268.2939 | H28: 17141.1289 | I28: 0 | J28: 0 | K28: 0 | L28: 1613.4797 | M28: 5727.312 | N28: 7051.7715 | O28: 2032.7576 | P28: 6110.9668 | Q28: 1360.177 | R28: 9.9155 | S28: 4539.1963 | T28: 0 | U28: 1790.0469 | V28: 8547.6338 | W28: 8203.7695 | X28: 12312.5127 | Y28: 19860.6816 | Z28: 30877.4766 | AA28: 439.9872 | AB28: 284.7664 | AC28: 696.5787 | AD28: 2408.6665 | AE28: 1903.4012 | AF28: 5002.0293 | AG28: 558426.5685
A29: 23 | B29: =паспорт!S33 -> 38.31 | C29: 411816.2188 | D29: 0 | E29: 0 | F29: 1354.7504 | G29: 209.3124 | H29: 13830.4346 | I29: 0 | J29: 0 | K29: 0 | L29: 1473.7783 | M29: 3474.0679 | N29: 5699.1841 | O29: 1696.5118 | P29: 5523.8311 | Q29: 1229.1912 | R29: 3.2929 | S29: 3954.0613 | T29: 0 | U29: 1653.9645 | V29: 7260.9004 | W29: 6938.8882 | X29: 14836.1445 | Y29: 19324.7949 | Z29: 25982.877 | AA29: 363.8476 | AB29: 193.9552 | AC29: 538.4821 | AD29: 2013.6514 | AE29: 1658.2209 | AF29: 4331.8745 | AG29: 535362.236
A30: 24 | B30: =паспорт!S34 -> 38.31 | C30: 412562.2813 | D30: 0 | E30: 0 | F30: 1196.2538 | G30: 177.5024 | H30: 12359.5068 | I30: 0 | J30: 0 | K30: 0 | L30: 1314.9005 | M30: 3300.9194 | N30: 5952.8774 | O30: 1709.8997 | P30: 4620.1577 | Q30: 1165.3164 | R30: 0 | S30: 4195.7534 | T30: 0 | U30: 1521.8215 | V30: 8135.123 | W30: 4358.4297 | X30: 16216.7607 | Y30: 19820.5 | Z30: 27701.2754 | AA30: 395.4256 | AB30: 139.2731 | AC30: 426.1559 | AD30: 1914.0641 | AE30: 1498.6943 | AF30: 4068.8862 | AG30: 534751.7783
A31: 25 | B31: =паспорт!S35 -> 38.31 | C31: 406654.4688 | D31: 0 | E31: 0 | F31: 1109.2523 | G31: 162.4769 | H31: 11959.29 | I31: 0 | J31: 0 | K31: 0 | L31: 1213.1925 | M31: 3713.467 | N31: 5643.6196 | O31: 1523.4207 | P31: 3871.7429 | Q31: 1044.0885 | R31: 0 | S31: 4002.0376 | T31: 0 | U31: 1342.382 | V31: 6553.2036 | W31: 4286.3091 | X31: 12059.7139 | Y31: 18875.5586 | Z31: 26294.6934 | AA31: 344.2188 | AB31: 160.9093 | AC31: 400.031 | AD31: 1831.5876 | AE31: 1538.085 | AF31: 3752.4226 | AG31: 518336.1717
A32: 26 | B32: =паспорт!S36 -> 38.31 | C32: 381634.6563 | D32: 0 | E32: 0 | F32: 1043.8112 | G32: 167.321 | H32: 12407.582 | I32: 0 | J32: 0 | K32: 0 | L32: 1204.5232 | M32: 3155.4629 | N32: 5868.6001 | O32: 1441.4139 | P32: 4137.5747 | Q32: 1011.0195 | R32: 0 | S32: 3868.4324 | T32: 0 | U32: 1269.8073 | V32: 6076.6367 | W32: 6118.6509 | X32: 10460.3838 | Y32: 18940.2461 | Z32: 27107.5859 | AA32: 332.2182 | AB32: 122.7373 | AC32: 360.7121 | AD32: 1774.4421 | AE32: 1455.9928 | AF32: 3582.458 | AG32: 493542.2684
A33: 27 | B33: =паспорт!S37 -> 38.31 | C33: 411414.3125 | D33: 0 | E33: 0 | F33: 1182.7644 | G33: 192.9604 | H33: 12929.9688 | I33: 0 | J33: 0 | K33: 0 | L33: 1319.09 | M33: 2798.3054 | N33: 5944.5771 | O33: 1588.3492 | P33: 4203.1558 | Q33: 1111.7228 | R33: 0 | S33: 3138.4819 | T33: 0 | U33: 1385.929 | V33: 6579.7383 | W33: 6388.4653 | X33: 11193.3408 | Y33: 18736.7754 | Z33: 26471.0723 | AA33: 353.0031 | AB33: 191.5282 | AC33: 440.9476 | AD33: 1936.2441 | AE33: 1564.5582 | AF33: 4041.2634 | AG33: =SUM(C33:AF33) -> 525106.554
A34: 28 | B34: =паспорт!S38 -> 38.31 | C34: 397343.2813 | D34: 0 | E34: 0 | F34: 1146.5345 | G34: 187.2886 | H34: 10725.0986 | I34: 0 | J34: 0 | K34: 0 | L34: 1325.4629 | M34: 2587.4736 | N34: 6232.0508 | O34: 1567.4196 | P34: 4647.2271 | Q34: 1138.4521 | R34: 0 | S34: 2938.062 | T34: 0 | U34: 1445.4189 | V34: 6633.5386 | W34: 6338.3521 | X34: 10570.29 | Y34: 19179.2129 | Z34: 27879.4023 | AA34: 341.0167 | AB34: 183.3574 | AC34: 454.5288 | AD34: 1898.1931 | AE34: 1651.416 | AF34: 4398.5386 | AG34: =SUM(C34:AF34) -> 510811.6165
A35: 29 | B35: =паспорт!S39 -> 38.34 | C35: 373897.9375 | D35: 0 | E35: 0 | F35: 962.0798 | G35: 158.6683 | H35: 11028.374 | I35: 0 | J35: 0 | K35: 0 | L35: 1092.6848 | M35: 3534.7244 | N35: 5043.6636 | O35: 1330.0774 | P35: 4039.238 | Q35: 565.4234 | R35: 0 | S35: 4025.9573 | T35: 0 | U35: 1181.0355 | V35: 5462.3574 | W35: 5441.1533 | X35: 9828.4766 | Y35: 18986.5566 | Z35: 28780.4727 | AA35: 281.6986 | AB35: 121.1232 | AC35: 348.8841 | AD35: 1588.5859 | AE35: 1325.9438 | AF35: 4150.5737 | AG35: =SUM(C35:AF35) -> 483175.6899
A36: 30 | B36: =паспорт!S40 -> 38.34 | C36: 368887.2188 | D36: 0 | E36: 0 | F36: 1003.1648 | G36: 156.7257 | H36: 11244.2412 | I36: 0 | J36: 0 | K36: 0 | L36: 1194.0007 | M36: 3531.9578 | N36: 5340.6455 | O36: 1254.3556 | P36: 3880.1165 | Q36: 1486.8483 | R36: 0 | S36: 3887.0784 | T36: 0 | U36: 1091.4989 | V36: 5325.1055 | W36: 5039.3726 | X36: 11049.7402 | Y36: 18839.5664 | Z36: 22755.6563 | AA36: 271.6255 | AB36: 137.5224 | AC36: 394.2864 | AD36: 1638.0758 | AE36: 1441.9662 | AF36: 3874.9849 | AG36: =SUM(C36:AF36) -> 473725.7544
A37: 31 | B37: =паспорт!S41 -> 38.34 | C37: 457995.1563 | D37: 0 | E37: 0 | F37: 876.5269 | G37: 144.5922 | H37: 9982.4131 | I37: 0 | J37: 0 | K37: 0 | L37: 1088.6996 | M37: 3514.3994 | N37: 4891.8433 | O37: 1228.9252 | P37: 3841.2854 | Q37: 915.1 | R37: 0 | S37: 4297.3096 | T37: 0 | U37: 1042.7246 | V37: 4949.2583 | W37: 7615.686 | X37: 8461.3008 | Y37: 18524.8711 | Z37: 25250.4238 | AA37: 258.6164 | AB37: 126.3525 | AC37: 325.979 | AD37: 1554.66 | AE37: 1252.3792 | AF37: 3415.509 | AG37: =SUM(C37:AF37) -> 561554.0117
A38: Загальний обсяг газу, м3 | C38: =SUM(C7:C37) -> 13035142.88 | D38: 0 | E38: 0 | F38: 62269.2857 | G38: 11388.6942 | H38: 541277.9667 | I38: =SUM(I7:I37) -> 0 | J38: =SUM(J7:J37) -> 0 | K38: 0 | L38: 59249.769 | M38: 117929.6326 | N38: 245882.7095 | O38: 70970.3386 | P38: 220237.2645 | Q38: 52177.1281 | R38: 3851.1374 | S38: 133833.3018 | T38: 0 | U38: 69100.2332 | V38: 319758.4101 | W38: 287798.4867 | X38: 443933.9853 | Y38: 466366.3637 | Z38: 1154852.033 | AA38: 19287.6841 | AB38: 10582.0765 | AC38: 22695.4928 | AD38: 92894.9595 | AE38: 71035.2516 | AF38: 197402.5988 | AG38: 17709917.68
A39: Енергія, МДж | C39: =SUMPRODUCT($B7:$B37,C7:C37) -> 499303937.9 | D39: 0 | E39: 0 | F39: 2385476.468 | G39: 436297.5728 | H39: 20734862.44 | I39: =SUMPRODUCT($B7:$B37,I7:I37) -> 0 | J39: =SUMPRODUCT($B7:$B37,J7:J37) -> 0 | K39: 0 | L39: 2269693.623 | M39: 4517249.888 | N39: 9419428.461 | O39: 2718682.834 | P39: 8436852.216 | Q39: 1998746.898 | R39: 147576.7075 | S39: 5126525.517 | T39: 0 | U39: 2647186.462 | V39: 12249881.84 | W39: 11025491.97 | X39: 17006447.61 | Y39: 17865867.13 | Z39: 44241768.57 | AA39: 738930.9301 | AB39: 405399.1726 | AC39: 869425.6282 | AD39: 3558784.319 | AE39: 2721274.51 | AF39: 7562545.062 | AG39: 678388333.7
A40: Теплота згоряння (середньозважене значення за місяць), МДж/м³ | C40: =C39/C38 -> 38.30444688 | F40: 38.30903858 | G40: 38.30971006 | H40: 38.30723531 | L40: 38.30721472 | M40: 38.30462106 | N40: 38.30862479 | O40: 38.30731103 | P40: 38.30801402 | Q40: 38.30695499 | R40: =R39/R38 -> 38.32029143 | S40: 38.30530554 | U40: 38.30937089 | V40: 38.30980345 | W40: 38.30976354 | X40: 38.3085057 | Y40: 38.30865286 | Z40: 38.30946934 | AA40: 38.31102408 | AB40: 38.30998317 | AC40: 38.30829477 | AD40: 38.3097677 | AE40: 38.30878963 | AF40: 38.3102609 | AG40: =AG39/AG38 -> 38.3055611
A41: Теплота згоряння (середньозважене значення за місяць), ккал/м³ | C41: =C40*238.8459 -> 9148.860089 | F41: 9149.956798 | G41: 9150.117178 | H41: 9149.526095 | L41: 9149.521177 | M41: 9148.901691 | N41: 9149.857967 | O41: 9149.544179 | P41: 9149.712086 | Q41: 9149.459142 | R41: =R40*238.8459 -> 9152.644495 | S41: 9149.065176 | U41: 9150.036169 | V41: 9150.139483 | W41: 9150.129952 | X41: 9149.829521 | Y41: 9149.864671 | Z41: 9150.059683 | AA41: 9150.431027 | AB41: 9150.18241 | AC41: 9149.779143 | AD41: 9150.130945 | AE41: 9149.897337 | AF41: 9150.248744 | AG41: =AG40*238.8459 -> 9149.126215
A42: Теплота згоряння (середньозважене значення за місяць), кВт*год./м³ | C42: =C40/3.6 -> 10.64012413 | F42: 10.64139961 | G42: 10.64158613 | H42: 10.6408987 | L42: 10.64089298 | M42: 10.64017252 | N42: 10.64128466 | O42: 10.64091973 | P42: 10.64111501 | Q42: 10.64082083 | R42: =R40/3.6 -> 10.6445254 | S42: 10.64036265 | U42: 10.64149191 | V42: 10.64161207 | W42: 10.64160098 | X42: 10.64125158 | Y42: 10.64129246 | Z42: 10.64151926 | AA42: 10.64195113 | AB42: 10.64166199 | AC42: 10.64119299 | AD42: 10.64160214 | AE42: 10.64133045 | AF42: 10.64173914 | AG42: =AG40/3.6 -> 10.64043364

Sheet додаток
A2: Додаток до Паспорту фізико-хімічних показників природного газу №174
A4: Область | B4: ГРС, прямий споживач | C4: Cередньозважене значення вищої теплоти згоряння
C5: МДж/м³ | D5: ккал/м³ | E5: кВт*год./м³
A6: Сумська область | B6: ГРС Cуми-1 | C6: 38.30444688 | D6: 9148.860089 | E6: 10.64012413
B7: ГРС Cуми-2 | C7: 0 | D7: 0 | E7: 0
B8: ПАТ «Сумське НВО» | C8: 0 | D8: 0 | E8: 0
B9: ГРС Низи | C9: 38.30903858 | D9: 9149.956798 | E9: 10.64139961
B10: ГРС Бішкінь | C10: 38.30971006 | D10: 9150.117178 | E10: 10.64158613
B11: ГРС Тростянець | C11: 38.30723531 | D11: 9149.526095 | E11: 10.6408987
B12: ГРС Косівщина | C12: 0 | D12: 0 | E12: 0
B13: ГРС Старе (червоне) Село | C13: 0 | D13: 0 | E13: 0
B14: ГРС Дослідна станція | C14: 0 | D14: 0 | E14: 0
B15: ГРС Ворожба | C15: 38.30721472 | D15: 9149.521177 | E15: 10.64089298
B16: ГРС Загорське | C16: 38.30462106 | D16: 9148.901691 | E16: 10.64017252
B17: ГРС Хотінь | C17: 38.30862479 | D17: 9149.857967 | E17: 10.64128466
B18: ГРС Юнаківка | C18: 38.30731103 | D18: 9149.544179 | E18: 10.64091973
B19: ГРС Краснопілля | C19: 38.30801402 | D19: 9149.712086 | E19: 10.64111501
B20: ГРС Осоївка | C20: 38.30695499 | D20: 9149.459142 | E20: 10.64082083
B21: ГРС Могриця | C21: 38.32029143 | D21: 9152.644495 | E21: 10.6445254
B22: ГРС Угроїди | C22: 38.30530554 | D22: 9149.065176 | E22: 10.64036265
B23: ГРС Калинівка | C23: 0 | D23: 0 | E23: 0
B24: ГРС Віри | C24: 38.30937089 | D24: 9150.036169 | E24: 10.64149191
B25: ГРС Білопілля | C25: 38.30980345 | D25: 9150.139483 | E25: 10.64161207
B26: ГРС Путивль | C26: 38.30976354 | D26: 9150.129952 | E26: 10.64160098
B27: ГРС Буринь | C27: 38.3085057 | D27: 9149.829521 | E27: 10.64125158
B28: ГРС Дубов'язівка | C28: 38.30865286 | D28: 9149.864671 | E28: 10.64129246
B29: ГРС Конотоп | C29: 38.30946934 | D29: 9150.059683 | E29: 10.64151926
B30: ГРС Головашівка | C30: 38.31102408 | D30: 9150.431027 | E30: 10.64195113
B31: ГРС Мартинівка | C31: 38.30998317 | D31: 9150.18241 | E31: 10.64166199
B32: ГРС Олешня | C32: 38.30829477 | D32: 9149.779143 | E32: 10.64119299
B33: ГРС Гринцеве | C33: 38.3097677 | D33: 9150.130945 | E33: 10.64160214
B34: ГРС Колядинець | C34: 38.30878963 | D34: 9149.897337 | E34: 10.64133045
B35: ГРС Липова Долина | C35: 38.3102609 | D35: 9150.248744 | E35: 10.64173914
A36: Середньозважене значення вищої теплоти згоряння по маршруту № 174 | C36: 38.3055611 | D36: 9149.126215 | E36: 10.64043364
A40: Головний інженер Сумського ЛВУМГ | C40: Соловйов О.Б. | E40: 2017-06-01
A41: Підрозділу підприємства, якому підпорядкована лабораторія | C41: прізвище | D41: підпис | E41: дата
A42: Завідувач ВХАЛ | C42: Журавльова В.В. | E42: 2017-06-01
A43: Лабораторія, де здійснювалось вимірювання газу | C43: прізвище | D43: підпис | E43: дата
A44: Начальник служби МтаГВ | C44: Соловйов А.І. | E44: 2017-06-01
A45: Підрозділу, відповідального за облік газу за маршрутом | C45: прізвище | D45: підпис | E45: дата

Sheet variablesList (hidden)
A1: 3 | B1: x:\gaysin | C1: 10, 11, 24, 25, 127, 128, 132, 180, 207, 215 | D1: x:\
B2: x:\Illinci
B3: x:\Talne

Sheet Лист1
A1: Данные по объекту Сумы1-Химия (осн.) за 5/17. | G1: Данные по объекту 500 (осн.) за 5/17. | M1: Данные по объекту Низы (осн.) за 5/17. | S1: Данные по объекту Бишкинь (осн.) за 5/17. | Y1: Данные по объекту Счетчик (осн.) за 5/17. | AE1: Данные по объекту Ворожба (осн.) за 5/17. | AK1: Данные по объекту Загорское -диафрагма (осн.) за 5/17. | AQ1: Данные по объекту Диафрагма (осн.) за 5/17. | AW1: Данные по объекту Юнаковка (осн.) за 5/17. | BC1: Данные по объекту Краснополье УЗЛ (осн.) за 5/17. | BI1: Данные по объекту Осоевка (осн.) за 5/17. | BO1: Данные по объекту Могрица (осн.) за 5/17. | BU1: Данные по объекту Угроеды (осн.) за 5/17. | CA1: Данные по объекту Виры-счетчик (осн.) за 5/17. | CG1: Данные по объекту Белополье-cчетчик (осн.) за 5/17. | CM1: Данные по объекту Путивль (осн.) за 5/17. | CS1: Данные по объекту Бурынь (осн.) за 5/17. | CY1: Данные по объекту Дубовязовка (осн.) за 5/17. | DE1: Данные по объекту Конотоп-счетчик (осн.) за 5/17. | DK1: Данные по объекту Головашевка-счетчик (осн.) за 5/17. | DQ1: Данные по объекту МАРТЫНОВКА (осн.) за 5/17. | DW1: Данные по объекту Олешня (осн.) за 5/17. | EC1: Данные по объекту ГРИНЦЕВО (осн.) за 5/17. | EI1: Данные по объекту Колядинец (осн.) за 5/17. | EP1: Данные по объекту Л_Долина (осн.) за 5/17.
A2: День | B2: V, м3 | C2: dP, кгс/м2 | D2: Pабс, кгс/см2 | E2: T, °C | F2: ABC | G2: День | H2: V, м3 | I2: dP, кгс/м2 | J2: Pабс, кгс/см2 | K2: T, °C | L2: ABC | M2: День | N2: V, м3 | O2: dP, кгс/м2 | P2: Pабс, кгс/см2 | Q2: T, °C | R2: ABC | S2: День | T2: V, м3 | U2: Vру, м3 | V2: Pабс, кгс/см2 | W2: T, °C | X2: ABC | Y2: День | Z2: V, м3 | AA2: Vру, м3 | AB2: Pабс, кгс/см2 | AC2: T, °C | AD2: ABC | AE2: День | AF2: V, м3 | AG2: dP, кгс/м2 | AH2: Pабс, кгс/см2 | AI2: T, °C | AJ2: ABC | AK2: День | AL2: V, м3 | AM2: dP, кгс/м2 | AN2: Pабс, кгс/см2 | AO2: T, °C | AP2: ABC | AQ2: День | AR2: V, м3 | AS2: dP, кгс/м2 | AT2: Pабс, кгс/см2 | AU2: T, °C | AV2: ABC | AW2: День | AX2: V, м3 | AY2: dP, кгс/м2 | AZ2: Pабс, кгс/см2 | BA2: T, °C | BB2: ABC | BC2: День | BD2: V, м3 | BE2: Vру, м3 | BF2: Pабс, кгс/см2 | BG2: T, °C | BH2: ABC | BI2: День | BJ2: V, м3 | BK2: Vру, м3 | BL2: Pабс, кгс/см2 | BM2: T, °C | BN2: ABC | BO2: День | BP2: V, м3 | BQ2: Vру, м3 | BR2: Pабс, кгс/см2 | BS2: T, °C | BT2: ABC | BU2: День | BV2: V, м3 | BW2: dP, кгс/м2 | BX2: Pабс, кгс/см2 | BY2: T, °C | BZ2: ABC | CA2: День | CB2: V, м3 | CC2: Vру, м3 | CD2: Pабс, кгс/см2 | CE2: T, °C | CF2: ABC | CG2: День | CH2: V, м3 | CI2: Vру, м3 | CJ2: Pабс, кгс/см2 | CK2: T, °C | CL2: ABC | CM2: День | CN2: V, м3 | CO2: dP, кгс/м2 | CP2: Pабс, кгс/см2 | CQ2: T, °C | CR2: ABC | CS2: День | CT2: V, м3 | CU2: dP, кгс/м2 | CV2: Pабс, кгс/см2 | CW2: T, °C | CX2: ABC | CY2: День | CZ2: V, м3 | DA2: dP, кгс/м2 | DB2: Pабс, кгс/см2 | DC2: T, °C | DD2: ABC | DE2: День | DF2: V, м3 | DG2: Vру, м3 | DH2: Pабс, кгс/см2 | DI2: T, °C | DJ2: ABC | DK2: День | DL2: V, м3 | DM2: Vру, м3 | DN2: Pабс, кгс/см2 | DO2: T, °C | DP2: ABC | DQ2: День | DR2: V, м3 | DS2: Vру, м3 | DT2: Pабс, кгс/см2 | DU2: T, °C | DV2: ABC | DW2: День | DX2: V, м3 | DY2: Vру, м3 | DZ2: Pабс, кгс/см2 | EA2: T, °C | EB2: ABC | EC2: День | ED2: V, м3 | EE2: dP, кгс/м2 | EF2: Pабс, кгс/см2 | EG2: T, °C | EH2: ABC | EI2: День | EJ2: V, м3 | EK2: Vру, м3 | EL2: Pабс, кгс/см2 | EM2: T, °C | EN2: ABC | EP2: День | EQ2: V, м3 | ER2: dP, кгс/м2 | ES2: Pабс, кгс/см2 | ET2: T, °C | EU2: ABC
A3: 1 | B3: 343442.875 | C3: 991.351 | D3: 4.047 | E3: -5.165 | G3: 1 | H3: 0 | I3: 0 | J3: 3.866 | K3: 21.616 | M3: 1 | N3: 1343.7643 | O3: 43.146 | P3: 3.884 | Q3: 17.917 | S3: 1 | T3: 216.3826 | U3: 78 | V3: 2.907 | W3: 18.972 | Y3: 1 | Z3: 9776.9268 | AA3: 282 | AB3: 33.425 | AC3: 19.868 | AE3: 1 | AF3: 1498.1517 | AG3: 78.456 | AH3: 2.98 | AI3: 17.834 | AK3: 1 | AL3: 2198.7622 | AM3: 155.277 | AN3: 5.562 | AO3: 15.991 | AP3: A | AQ3: 1 | AR3: 4182.4316 | AS3: 87.249 | AT3: 3.402 | AU3: 7.712 | AV3: A | AW3: 1 | AX3: 1685.114 | AY3: 77.918 | AZ3: 3.422 | BA3: 16.041 | BC3: 1 | BD3: 5273.0352 | BE3: 1711.301 | BF3: 3.166 | BG3: 16.23 | BI3: 1 | BJ3: 1296.9824 | BK3: 447 | BL3: 2.982 | BM3: 17.207 | BN3: A | BO3: 1 | BP3: 3.9978 | BQ3: 1 | BR3: 3.861 | BS3: 20.387 | BU3: 1 | BV3: 3227.2019 | BW3: 259.238 | BX3: 3.225 | BY3: 16.652 | BZ3: A | CA3: 1 | CB3: 1607.6578 | CC3: 418 | CD3: 3.897 | CE3: 12.855 | CF3: A | CG3: 1 | CH3: 6820.3789 | CI3: 195 | CJ3: 33.529 | CK3: 18.765 | CL3: A | CM3: 1 | CN3: 5601.811 | CO3: 9.554 | CP3: 3.729 | CQ3: 19.433 | CR3: A | CS3: 1 | CT3: 12218.4414 | CU3: 49.417 | CV3: 3.312 | CW3: 2.956 | CX3: A | CY3: 1 | CZ3: 2781.9741 | DA3: 83.304 | DB3: 2.749 | DC3: 14.773 | DE3: 1 | DF3: 26173.582 | DG3: 741.0001 | DH3: 33.455 | DI3: 15.719 | DJ3: A | DK3: 1 | DL3: 372.6656 | DM3: 139 | DN3: 2.808 | DO3: 18.628 | DP3: A | DQ3: 1 | DR3: 262.9366 | DS3: 79 | DT3: 3.453 | DU3: 18.365 | DV3: A | DW3: 1 | DX3: 522.7463 | DY3: 208 | DZ3: 2.63 | EA3: 19.88 | EB3: A | EC3: 1 | ED3: 2156.0781 | EE3: 174.125 | EF3: 3.15 | EG3: 13.537 | EH3: A | EI3: 1 | EJ3: 1896.113 | EK3: 697.0001 | EL3: 2.78 | EM3: 16.461 | EN3: A | EP3: 1 | EQ3: 4809.6865 | ER3: 49.92 | ES3: 2.879 | ET3: 13.823
A4: 2 | B4: 348314.2813 | C4: 1030.802 | D4: 4.045 | E4: -4.593 | G4: 2 | H4: 0 | I4: 0 | J4: 3.861 | K4: 20.521 | M4: 2 | N4: 1323.6786 | O4: 42.025 | P4: 3.884 | Q4: 17.809 | S4: 2 | T4: 249.4239 | U4: 89 | V4: 2.908 | W4: 18.352 | Y4: 2 | Z4: 10782.2354 | AA4: 310 | AB4: 33.213 | AC4: 17.938 | AE4: 2 | AF4: 1470.2205 | AG4: 75.57 | AH4: 2.978 | AI4: 17.315 | AK4: 2 | AL4: 2464.0649 | AM4: 194.104 | AN4: 5.509 | AO4: 14.441 | AP4: A | AQ4: 2 | AR4: 5537.5161 | AS4: 141.935 | AT4: 3.372 | AU4: 6.211 | AW4: 2 | AX4: 1636.1798 | AY4: 76.906 | AZ4: 3.447 | BA4: 15.491 | BC4: 2 | BD4: 5077.2461 | BE4: 1656.7981 | BF4: 3.163 | BG4: 16.983 | BH4: A | BI4: 2 | BJ4: 1218.2529 | BK4: 427 | BL4: 2.941 | BM4: 17.614 | BN4: A | BO4: 2 | BP4: 0 | BQ4: 0 | BR4: 3.89 | BS4: 18.036 | BU4: 2 | BV4: 3095.4458 | BW4: 239.722 | BX4: 3.212 | BY4: 16.718 | BZ4: A | CA4: 2 | CB4: 1541.5942 | CC4: 403 | CD4: 3.858 | CE4: 11.277 | CF4: A | CG4: 2 | CH4: 6901.7612 | CI4: 198 | CJ4: 33.315 | CK4: 17.758 | CL4: A | CM4: 2 | CN4: 5645.5581 | CO4: 9.758 | CP4: 3.748 | CQ4: 15.614 | CR4: A | CS4: 2 | CT4: 13960.7012 | CU4: 59.904 | CV4: 3.255 | CW4: 0.16 | CY4: 2 | CZ4: 2884.2854 | DA4: 86.802 | DB4: 2.755 | DC4: 11.21 | DE4: 2 | DF4: 30639.5938 | DG4: 863.0001 | DH4: 33.232 | DI4: 13.137 | DJ4: A | DK4: 2 | DL4: 342.482 | DM4: 128 | DN4: 2.776 | DO4: 17.009 | DP4: A | DQ4: 2 | DR4: 234.364 | DS4: 71 | DT4: 3.395 | DU4: 16.445 | DV4: A | DW4: 2 | DX4: 543.641 | DY4: 212 | DZ4: 2.686 | EA4: 19.807 | EB4: A | EC4: 2 | ED4: 2099.5046 | EE4: 166.493 | EF4: 3.114 | EG4: 11.764 | EH4: A | EI4: 2 | EJ4: 1825.9814 | EK4: 676.0001 | EL4: 2.753 | EM4: 14.203 | EN4: A | EP4: 2 | EQ4: 4569.6567 | ER4: 47.648 | ES4: 2.861 | ET4: 11.588 | EU4: A
A5: 3 | B5: 396379.0313 | C5: 1324.348 | D5: 4.063 | E5: -4.864 | F5: B | G5: 3 | H5: 0 | I5: 0 | J5: 3.821 | K5: 18.431 | L5: B | M5: 3 | N5: 1192.9182 | O5: 32.855 | P5: 3.893 | Q5: 15.186 | R5: B | S5: 3 | T5: 239.158 | U5: 84 | V5: 2.908 | W5: 14.76 | X5: B | Y5: 3 | Z5: 13952.4951 | AA5: 402 | AB5: 32.873 | AC5: 15.38 | AD5: B | AE5: 3 | AF5: 1415.2218 | AG5: 69.253 | AH5: 2.961 | AI5: 15.707 | AJ5: B | AK5: 3 | AL5: 3310.7483 | AM5: 248.374 | AN5: 5.503 | AO5: 12.037 | AP5: AB | AQ5: 3 | AR5: 5567.7969 | AS5: 138.997 | AT5: 3.341 | AU5: 4.375 | AV5: B | AW5: 3 | AX5: 1608.9548 | AY5: 66.014 | AZ5: 3.445 | BA5: 13.497 | BB5: AB | BC5: 3 | BD5: 4671.8184 | BE5: 1524.9324 | BF5: 3.114 | BG5: 14.866 | BH5: B | BI5: 3 | BJ5: 1207.3757 | BK5: 413 | BL5: 2.965 | BM5: 14.269 | BN5: AB | BO5: 3 | BP5: 4.0274 | BQ5: 1 | BR5: 3.818 | BS5: 15.661 | BT5: B | BU5: 3 | BV5: 4466.79 | BW5: 512.803 | BX5: 3.292 | BY5: 12.855 | BZ5: AB | CA5: 3 | CB5: 1462.4609 | CC5: 386 | CD5: 3.79 | CE5: 10.103 | CF5: AB | CG5: 3 | CH5: 6728.8413 | CI5: 194 | CJ5: 32.993 | CK5: 16.958 | CL5: AB | CM5: 3 | CN5: 5248.4932 | CO5: 8.898 | CP5: 3.748 | CQ5: 16.183 | CR5: AB | CS5: 3 | CT5: 11515.9502 | CU5: 46.55 | CV5: 3.219 | CW5: 0.573 | CX5: AB | CY5: 3 | CZ5: 2761.3813 | DA5: 79.592 | DB5: 2.758 | DC5: 11.158 | DD5: B | DE5: 3 | DF5: 35684.3398 | DG5: 1014.0001 | DH5: 32.903 | DI5: 12.852 | DJ5: AB | DK5: 3 | DL5: 325.4226 | DM5: 120 | DN5: 2.803 | DO5: 15.868 | DP5: AB | DQ5: 3 | DR5: 225.4313 | DS5: 66 | DT5: 3.462 | DU5: 14.249 | DV5: AB | DW5: 3 | DX5: 472.1064 | DY5: 181 | DZ5: 2.687 | EA5: 16.88 | EB5: AB | EC5: 3 | ED5: 2042.8623 | EE5: 159.194 | EF5: 3.079 | EG5: 9.872 | EH5: AB | EI5: 3 | EJ5: 1728.7194 | EK5: 633.0001 | EL5: 2.76 | EM5: 13.086 | EN5: AB | EP5: 3 | EQ5: 4666.9194 | ER5: 47.402 | ES5: 2.859 | ET5: 10.788 | EU5: AB
A6: 4 | B6: 390313.5 | C6: 1282.76 | D6: 4.071 | E6: -4.519 | F6: B | G6: 4 | H6: 0 | I6: 0 | J6: 3.839 | K6: 17.055 | M6: 4 | N6: 1272.6454 | O6: 37.329 | P6: 3.887 | Q6: 15.843 | R6: B | S6: 4 | T6: 258.4374 | U6: 91 | V6: 2.905 | W6: 15.672 | Y6: 4 | Z6: 16527.3281 | AA6: 477 | AB6: 32.646 | AC6: 14.707 | AD6: A | AE6: 4 | AF6: 1535.2942 | AG6: 79.843 | AH6: 2.956 | AI6: 15.642 | AK6: 4 | AL6: 3353.0686 | AM6: 256.554 | AN6: 5.471 | AO6: 12.075 | AP6: A | AQ6: 4 | AR6: 5941.8521 | AS6: 156.574 | AT6: 3.353 | AU6: 3.904 | AW6: 4 | AX6: 1767.4923 | AY6: 85.308 | AZ6: 3.365 | BA6: 12.916 | BB6: A | BC6: 4 | BD6: 5181.3486 | BE6: 1700.783 | BF6: 3.076 | BG6: 13.432 | BI6: 4 | BJ6: 1308.0804 | BK6: 457 | BL6: 2.895 | BM6: 13.255 | BN6: A | BO6: 4 | BP6: 3.0822 | BQ6: 1 | BR6: 3.707 | BS6: 15.254 | BU6: 4 | BV6: 4274.4697 | BW6: 464.345 | BX6: 3.281 | BY6: 12.686 | BZ6: A | CA6: 4 | CB6: 1657.4344 | CC6: 431 | CD6: 3.848 | CE6: 9.871 | CF6: A | CG6: 4 | CH6: 7282.8037 | CI6: 212 | CJ6: 32.765 | CK6: 17.081 | CL6: A | CM6: 4 | CN6: 7385.4346 | CO6: 183,471* | CP6: 3,762* | CQ6: 15,298* | CR6: ABC | CS6: 4 | CT6: 13655.4258 | CU6: 57.369 | CV6: 3.212 | CW6: 0.4 | CY6: 4 | CZ6: 2959.9204 | DA6: 89.45 | DB6: 2.756 | DC6: 11.867 | DE6: 4 | DF6: 35787.5117 | DG6: 1030.0002 | DH6: 32.672 | DI6: 13.735 | DJ6: A | DK6: 4 | DL6: 389.6142 | DM6: 144 | DN6: 2.758 | DO6: 14.961 | DP6: A | DQ6: 4 | DR6: 252.6049 | DS6: 75 | DT6: 3.413 | DU6: 14.587 | DV6: A | DW6: 4 | DX6: 499.5417 | DY6: 192 | DZ6: 2.689 | EA6: 17.96 | EB6: A | EC6: 4 | ED6: 2271.7229 | EE6: 187.858 | EF6: 3.058 | EG6: 9.917 | EH6: A | EI6: 4 | EJ6: 1830.5311 | EK6: 676.0001 | EL6: 2.749 | EM6: 13.237 | EN6: A | EP6: 4 | EQ6: 4871.8052 | ER6: 51.927 | ES6: 2.862 | ET6: 11.479
A7: 5 | B7: 394630.6875 | C7: 1307.749 | D7: 4.068 | E7: -4.716 | G7: 5 | H7: 0 | I7: 0 | J7: 3.831 | K7: 15.005 | M7: 5 | N7: 1472.7902 | O7: 48.766 | P7: 3.869 | Q7: 12.993 | S7: 5 | T7: 324.3615 | U7: 114 | V7: 2.891 | W7: 13.725 | Y7: 5 | Z7: 16174.417 | AA7: 464 | AB7: 32.638 | AC7: 13.186 | AD7: A | AE7: 5 | AF7: 1689.9734 | AG7: 90.929 | AH7: 2.939 | AI7: 11.81 | AK7: 5 | AL7: 3137.1641 | AM7: 214.637 | AN7: 5.542 | AO7: 9.29 | AP7: A | AQ7: 5 | AR7: 6335.2632 | AS7: 173.713 | AT7: 3.335 | AU7: 2.27 | AW7: 5 | AX7: 2013.8859 | AY7: 99.875 | AZ7: 3.444 | BA7: 10.501 | BB7: A | BC7: 5 | BD7: 5677.7051 | BE7: 1869.4646 | BF7: 3.028 | BG7: 10.093 | BI7: 5 | BJ7: 1567.6602 | BK7: 534 | BL7: 2.934 | BM7: 10.678 | BN7: A | BO7: 5 | BP7: 36.5889 | BQ7: 12 | BR7: 3.374 | BS7: 13.806 | BU7: 5 | BV7: 3632.4363 | BW7: 325.57 | BX7: 3.251 | BY7: 10.615 | BZ7: A | CA7: 5 | CB7: 1813.973 | CC7: 472 | CD7: 3.784 | CE7: 6.425 | CF7: A | CG7: 5 | CH7: 7784.3481 | CI7: 225 | CJ7: 32.757 | CK7: 15.338 | CL7: A | CM7: 5 | CN7: 7796.9829 | CO7: 290.07 | CP7: 3.783 | CQ7: 13.477 | CS7: 5 | CT7: 11351.8359 | CU7: 67.109 | CV7: 3.188 | CW7: 0.35 | CX7: A | CY7: 5 | CZ7: 4392.5381 | DA7: 259.073 | DB7: 2.769 | DC7: 7.333 | DE7: 5 | DF7: 36007.0273 | DG7: 1033.0002 | DH7: 32.664 | DI7: 12.77 | DJ7: A | DK7: 5 | DL7: 440.3832 | DM7: 163 | DN7: 2.738 | DO7: 13.264 | DP7: A | DQ7: 5 | DR7: 278.4659 | DS7: 82 | DT7: 3.407 | DU7: 12.344 | DV7: A | DW7: 5 | DX7: 553.281 | DY7: 211 | DZ7: 2.668 | EA7: 14.287 | EB7: A | EC7: 5 | ED7: 2428.7368 | EE7: 211.917 | EF7: 3.023 | EG7: 6.772 | EH7: A | EI7: 5 | EJ7: 1917.1831 | EK7: 699.0001 | EL7: 2.753 | EM7: 11.416 | EP7: 5 | EQ7: 4945.0054 | ER7: 50.835 | ES7: 2.835 | ET7: 9.7
A8: 6 | B8: 375851.25 | C8: 1198.907 | D8: 4.065 | E8: -4.02 | G8: 6 | H8: 0 | I8: 0 | J8: 3.85 | K8: 21.374 | M8: 6 | N8: 1527.2423 | O8: 54.24 | P8: 3.864 | Q8: 16.64 | S8: 6 | T8: 337.1086 | U8: 120 | V8: 2.877 | W8: 16.854 | Y8: 6 | Z8: 13143.8193 | AA8: 378 | AB8: 32.826 | AC8: 14.217 | AE8: 6 | AF8: 1695.9177 | AG8: 93.103 | AH8: 2.94 | AI8: 15.41 | AK8: 6 | AL8: 2613.3684 | AM8: 181.823 | AN8: 5.491 | AO8: 14.919 | AP8: A | AQ8: 6 | AR8: 6449.2563 | AS8: 184.889 | AT8: 3.38 | AU8: 4.289 | AW8: 6 | AX8: 1947.7549 | AY8: 105.72 | AZ8: 3.449 | BA8: 15.498 | BB8: A | BC8: 6 | BD8: 6208.6851 | BE8: 2064.5259 | BF8: 3.077 | BG8: 14.771 | BI8: 6 | BJ8: 1561.3458 | BK8: 543 | BL8: 2.932 | BM8: 15.781 | BN8: A | BO8: 6 | BP8: 24.626 | BQ8: 8 | BR8: 3.433 | BS8: 18.602 | BU8: 6 | BV8: 3365.5254 | BW8: 272.35 | BX8: 3.305 | BY8: 15.368 | BZ8: A | CA8: 6 | CB8: 1936.5886 | CC8: 506 | CD8: 3.837 | CE8: 10.348 | CF8: A | CG8: 6 | CH8: 7667.3325 | CI8: 222 | CJ8: 32.938 | CK8: 17.179 | CL8: A | CM8: 6 | CN8: 7542.9751 | CO8: 283.659 | CP8: 3.768 | CQ8: 17.74 | CS8: 6 | CT8: 12453.0537 | CU8: 51.545 | CV8: 3.208 | CW8: 0.982 | CX8: A | CY8: 6 | CZ8: 2891.1323 | DA8: 90.284 | DB8: 2.747 | DC8: 14.658 | DE8: 6 | DF8: 28421.2695 | DG8: 819.0001 | DH8: 32.857 | DI8: 15.186 | DJ8: A | DK8: 6 | DL8: 442.7545 | DM8: 164 | DN8: 2.801 | DO8: 17.617 | DP8: A | DQ8: 6 | DR8: 243.0624 | DS8: 73 | DT8: 3.364 | DU8: 14.729 | DV8: A | DW8: 6 | DX8: 571.8158 | DY8: 221 | DZ8: 2.674 | EA8: 18.042 | EB8: A | EC8: 6 | ED8: 2393.3052 | EE8: 206.877 | EF8: 3.056 | EG8: 10.61 | EH8: A | EI8: 6 | EJ8: 1903.6831 | EK8: 715.0001 | EL8: 2.697 | EM8: 15.398 | EP8: 6 | EQ8: 5145.2373 | ER8: 57.279 | ES8: 2.856 | ET8: 12.501 | EU8: A
A9: 7 | B9: 369711.25 | C9: 1154.734 | D9: 4.051 | E9: -3.928 | G9: 7 | H9: 0 | I9: 0 | J9: 3.84 | K9: 20.227 | M9: 7 | N9: 1383.7334 | O9: 45.826 | P9: 3.861 | Q9: 18.176 | S9: 7 | T9: 252.3768 | U9: 91 | V9: 2.892 | W9: 19.951 | Y9: 7 | Z9: 11680.0518 | AA9: 333 | AB9: 33.137 | AC9: 15.846 | AE9: 7 | AF9: 1505.2662 | AG9: 76.84 | AH9: 2.942 | AI9: 17.908 | AK9: 7 | AL9: 2057.3887 | AM9: 150.093 | AN9: 5.463 | AO9: 15.185 | AP9: A | AQ9: 7 | AR9: 5809.7476 | AS9: 159.911 | AT9: 3.373 | AU9: 6.641 | AW9: 7 | AX9: 1783.024 | AY9: 86.777 | AZ9: 3.467 | BA9: 16.117 | BC9: 7 | BD9: 5556.8892 | BE9: 1837.6047 | BF9: 3.111 | BG9: 16.901 | BI9: 7 | BJ9: 1344.1862 | BK9: 472 | BL9: 2.928 | BM9: 17.641 | BN9: A | BO9: 7 | BP9: 25.2982 | BQ9: 8 | BR9: 3.64 | BS9: 19.311 | BU9: 7 | BV9: 3237.4871 | BW9: 252.463 | BX9: 3.328 | BY9: 17.884 | BZ9: A | CA9: 7 | CB9: 1615.6643 | CC9: 420 | CD9: 3.882 | CE9: 11.65 | CF9: A | CG9: 7 | CH9: 6906.5449 | CI9: 199 | CJ9: 33.247 | CK9: 17.66 | CL9: A | CM9: 7 | CN9: 6650.4897 | CO9: 216.614 | CP9: 3.769 | CQ9: 17.851 | CS9: 7 | CT9: 11336.8408 | CU9: 42.592 | CV9: 3.217 | CW9: 2.61 | CX9: A | CY9: 7 | CZ9: 2753.78 | DA9: 83.242 | DB9: 2.735 | DC9: 15.675 | DE9: 7 | DF9: 26639.4336 | DG9: 764.0001 | DH9: 33.171 | DI9: 16.147 | DJ9: A | DK9: 7 | DL9: 391.0546 | DM9: 144 | DN9: 2.827 | DO9: 18.857 | DP9: A | DQ9: 7 | DR9: 291.5488 | DS9: 88 | DT9: 3.416 | DU9: 17.94 | DV9: A | DW9: 7 | DX9: 531.1031 | DY9: 208 | DZ9: 2.68 | EA9: 21.346 | EB9: A | EC9: 7 | ED9: 2208.6326 | EE9: 184.48 | EF9: 3.077 | EG9: 14.57 | EH9: A | EI9: 7 | EJ9: 1789.1853 | EK9: 666.0001 | EL9: 2.752 | EM9: 17.609 | EN9: A | EP9: 7 | EQ9: 4473.2954 | ER9: 46.614 | ES9: 2.847 | ET9: 15.392 | EU9: A
A10: 8 | B10: 353323.6563 | C10: 1061.423 | D10: 4.045 | E10: -3.694 | G10: 8 | H10: 0 | I10: 0 | J10: 3.856 | K10: 17.258 | M10: 8 | N10: 1516.7294 | O10: 53.096 | P10: 3.849 | Q10: 15.516 | S10: 8 | T10: 285.6895 | U10: 102 | V10: 2.885 | W10: 16.158 | Y10: 8 | Z10: 12380.0791 | AA10: 350 | AB10: 33.352 | AC10: 14.921 | AE10: 8 | AF10: 1552.1884 | AG10: 76.924 | AH10: 2.912 | AI10: 15.517 | AK10: 8 | AL10: 2884.6746 | AM10: 219.247 | AN10: 5.438 | AO10: 11.313 | AP10: AB | AQ10: 8 | AR10: 6175.5566 | AS10: 178.1 | AT10: 3.342 | AU10: 5.39 | AW10: 8 | AX10: 1847.9473 | AY10: 93.013 | AZ10: 3.387 | BA10: 13.519 | BC10: 8 | BD10: 5230.4502 | BE10: 1724.8127 | BF10: 3.095 | BG10: 15.841 | BI10: 8 | BJ10: 1266.7327 | BK10: 449 | BL10: 2.876 | BM10: 15.103 | BN10: A | BO10: 8 | BP10: 0 | BQ10: 0 | BR10: 3.553 | BS10: 15.843 | BU10: 8 | BV10: 3746.0488 | BW10: 362.49 | BX10: 3.277 | BY10: 14.285 | BZ10: A | CA10: 8 | CB10: 1736.4603 | CC10: 449 | CD10: 3.853 | CE10: 8.189 | CF10: A | CG10: 8 | CH10: 7740.9048 | CI10: 219 | CJ10: 33.457 | CK10: 15.467 | CL10: A | CM10: 8 | CN10: 7471.3062 | CO10: 274.384 | CP10: 3.753 | CQ10: 14.912 | CS10: 8 | CT10: 10179.4717 | CU10: 55.955 | CV10: 3.175 | CW10: 3.82 | CX10: A | CY10: 8 | CZ10: 3036.5139 | DA10: 99.394 | DB10: 2.73 | DC10: 12.202 | DE10: 8 | DF10: 28042.8555 | DG10: 791.0001 | DH10: 33.381 | DI10: 14.258 | DJ10: A | DK10: 8 | DL10: 480.0282 | DM10: 174 | DN10: 2.846 | DO10: 15.66 | DP10: A | DQ10: 8 | DR10: 257.2861 | DS10: 78 | DT10: 3.352 | DU10: 15.306 | DV10: AB | DW10: 8 | DX10: 554.6378 | DY10: 215 | DZ10: 2.671 | EA10: 19.143 | EB10: A | EC10: 8 | ED10: 2457.6509 | EE10: 212.579 | EF10: 3.018 | EG10: 11.17 | EH10: A | EI10: 8 | EJ10: 1907.9297 | EK10: 710.0001 | EL10: 2.72 | EM10: 13.263 | EN10: A | EP10: 8 | EQ10: 4620.269 | ER10: 44.421 | ES10: 2.837 | ET10: 12.768 | EU10: A
A11: 9 | B11: 381798.3125 | C11: 1240.661 | D11: 4.055 | E11: -4.855 | F11: B | G11: 9 | H11: 0 | I11: 0 | J11: 3.84 | K11: 10.275 | M11: 9 | N11: 2097.4744 | O11: 98.94 | P11: 3.847 | Q11: 8.76 | S11: 9 | T11: 395.6512 | U11: 138 | V11: 2.869 | W11: 10.419 | Y11: 9 | Z11: 17768.8555 | AA11: 499 | AB11: 33.121 | AC11: 12.009 | AD11: A | AE11: 9 | AF11: 2035.649 | AG11: 122.286 | AH11: 2.898 | AI11: 8.259 | AK11: 9 | AL11: 2842.9497 | AM11: 183.016 | AN11: 5.543 | AO11: 5.05 | AP11: A | AQ11: 9 | AR11: 8227.749 | AS11: 294.238 | AT11: 3.315 | AU11: -0.142 | AW11: 9 | AX11: 2617.9644 | AY11: 164.685 | AZ11: 3.428 | BA11: 5.043 | BB11: A | BC11: 9 | BD11: 6441.1157 | BE11: 2140.6431 | BF11: 2.984 | BG11: 7.843 | BI11: 9 | BJ11: 1804.7214 | BK11: 626 | BL11: 2.848 | BM11: 7.509 | BN11: A | BO11: 9 | BP11: 88.4603 | BQ11: 29 | BR11: 3.178 | BS11: 8.399 | BU11: 9 | BV11: 3525.3335 | BW11: 305.465 | BX11: 3.159 | BY11: 7.576 | BZ11: A | CA11: 9 | CB11: 2256.1294 | CC11: 577 | CD11: 3.766 | CE11: 1.254 | CF11: A | CG11: 9 | CH11: 10894.0693 | CI11: 305.0001 | CJ11: 33.23 | CK11: 11.976 | CL11: A | CM11: 9 | CN11: 11358.4521 | CO11: 591.271 | CP11: 3.768 | CQ11: 5.529 | CS11: 9 | CT11: 15131.1299 | CU11: 71.167 | CV11: 3.078 | CW11: -3.498 | CY11: 9 | CZ11: 4065.1572 | DA11: 167.381 | DB11: 2.745 | DC11: 4.251 | DE11: 9 | DF11: 40030.2617 | DG11: 1115.0002 | DH11: 33.13 | DI11: 10.143 | DJ11: A | DK11: 9 | DL11: 648.5718 | DM11: 233 | DN11: 2.765 | DO11: 8.197 | DP11: A | DQ11: 9 | DR11: 376.0794 | DS11: 109 | DT11: 3.411 | DU11: 7.511 | DV11: A | DW11: 9 | DX11: 713.769 | DY11: 272.0001 | DZ11: 2.638 | EA11: 11.134 | EB11: A | EC11: 9 | ED11: 3293.2573 | EE11: 348.411 | EF11: 2.928 | EG11: 2.678 | EH11: A | EI11: 9 | EJ11: 2586.9817 | EK11: 939.0001 | EL11: 2.721 | EM11: 6.233 | EP11: 9 | EQ11: 6315.9453 | ER11: 84.466 | ES11: 2.688 | ET11: 4.232 | EU11: A
A12: 10 | B12: 432946.0938 | C12: 1593.223 | D12: 4.107 | E12: -4.812 | F12: B | G12: 10 | H12: 0 | I12: 0 | J12: 3.832 | K12: 9.869 | L12: B | M12: 10 | N12: 3069.0042 | O12: 213.604 | P12: 3.859 | Q12: 6.066 | R12: B | S12: 10 | T12: 689.4302 | U12: 240 | V12: 2.835 | W12: 7.235 | X12: AB | Y12: 10 | Z12: 25696.2129 | AA12: 751 | AB12: 32.57 | AC12: 16.313 | AD12: AB | AE12: 10 | AF12: 2893.0657 | AG12: 249.333 | AH12: 2.872 | AI12: 5.528 | AJ12: B | AK12: 10 | AL12: 4058.0955 | AM12: 249.068 | AN12: 5.483 | AO12: 2.788 | AP12: AB | AQ12: 10 | AR12: 10598.1768 | AS12: 489.208 | AT12: 3.342 | AU12: -1.618 | AV12: B | AW12: 10 | AX12: 3095.4993 | AY12: 231.638 | AZ12: 3.444 | BA12: 3.982 | BB12: AB | BC12: 10 | BD12: 9762.3154 | BE12: 3280.1108 | BF12: 2.885 | BG12: 3.801 | BH12: B | BI12: 10 | BJ12: 2289.9778 | BK12: 786 | BL12: 2.856 | BM12: 5.613 | BN12: B | BO12: 10 | BP12: 235.6413 | BQ12: 76 | BR12: 3,100* | BS12: 7,303* | BT12: ABC | BU12: 10 | BV12: 6370.1538 | BW12: 983.346 | BX12: 3.188 | BY12: 4.444 | BZ12: AB | CA12: 10 | CB12: 3381.0674 | CC12: 869 | CD12: 3.695 | CE12: -1.795 | CF12: B | CG12: 10 | CH12: 16070.7891 | CI12: 454.0001 | CJ12: 32.682 | CK12: 10.127 | CL12: B | CM12: 10 | CN12: 15147.8711 | CO12: 1064.232 | CP12: 3.764 | CQ12: 2.857 | CR12: AB | CS12: 10 | CT12: 21250.9277 | CU12: 293.352 | CV12: 3.039 | CW12: -4.442 | CX12: AB | CY12: 10 | CZ12: 6198.0483 | DA12: 382.104 | DB12: 2.764 | DC12: 0.78 | DD12: B | DE12: 10 | DF12: 61459 | DG12: 1737.0002 | DH12: 32.527 | DI12: 9.032 | DJ12: B | DK12: 10 | DL12: 991.0897 | DM12: 355 | DN12: 2.746 | DO12: 6.895 | DP12: AB | DQ12: 10 | DR12: 579.3173 | DS12: 166 | DT12: 3.382 | DU12: 3.741 | DV12: AB | DW12: 10 | DX12: 1168.9193 | DY12: 445.0001 | DZ12: 2.598 | EA12: 8.102 | EB12: AB | EC12: 10 | ED12: 5182.999 | EE12: 846.129 | EF12: 2.875 | EG12: -0.731 | EH12: B | EI12: 10 | EJ12: 3939.5852 | EK12: 1392.0002 | EL12: 2.745 | EM12: 2.419 | EN12: B | EP12: 10 | EQ12: 11349.7969 | ER12: 294.198 | ES12: 2.646 | ET12: -0.949 | EU12: AB
A13: 11 | B13: 480372.0625 | C13: 1961.406 | D13: 4.116 | E13: -4.017 | G13: 11 | H13: 0 | I13: 0 | J13: 3.772 | K13: 13.617 | M13: 11 | N13: 3143.354 | O13: 215.334 | P13: 3.862 | Q13: 9.236 | R13: B | S13: 11 | T13: 605.9594 | U13: 212 | V13: 2.854 | W13: 10.501 | X13: A | Y13: 11 | Z13: 25644.3027 | AA13: 760 | AB13: 31.902 | AC13: 15.162 | AE13: 11 | AF13: 2812.8235 | AG13: 235.152 | AH13: 2.893 | AI13: 8.423 | AK13: 11 | AL13: 4265.8564 | AM13: 274.007 | AN13: 5.495 | AO13: 5.265 | AP13: A | AQ13: 11 | AR13: 11480.6709 | AS13: 565.899 | AT13: 3.375 | AU13: -1.025 | AW13: 11 | AX13: 3365.2817 | AY13: 275.008 | AZ13: 3.512 | BA13: 7.038 | BB13: A | BC13: 11 | BD13: 10759.7031 | BE13: 3526.0142 | BF13: 2.996 | BG13: 6.942 | BI13: 11 | BJ13: 2082.1021 | BK13: 747 | BL13: 2.36 | BM13: 9.532 | BN13: AB | BO13: 11 | BP13: 277.6006 | BQ13: 84 | BR13: 3.272 | BS13: 9.941 | BU13: 11 | BV13: 5342.083 | BW13: 712.029 | BX13: 3.231 | BY13: 7.185 | BZ13: A | CA13: 11 | CB13: 3402.5186 | CC13: 876 | CD13: 3.748 | CE13: 2.273 | CF13: A | CG13: 11 | CH13: 17065.1543 | CI13: 494.0001 | CJ13: 32.016 | CK13: 10.709 | CM13: 11 | CN13: 16795.0684 | CO13: 1297.575 | CP13: 3.777 | CQ13: 6.439 | CS13: 11 | CT13: 21981.5742 | CU13: 366.029 | CV13: 3.053 | CW13: -1.522 | CX13: A | CY13: 11 | CZ13: 18545.2461 | DA13: 3643.768 | DB13: 3.024 | DC13: 0.984 | DD13: A | DE13: 11 | DF13: 68083.5 | DG13: 1983.0002 | DH13: 31.815 | DI13: 10.491 | DK13: 11 | DL13: 1075.0981 | DM13: 385 | DN13: 2.78 | DO13: 9.785 | DP13: A | DQ13: 11 | DR13: 655.8837 | DS13: 189 | DT13: 3.403 | DU13: 6.827 | DV13: A | DW13: 11 | DX13: 1168.2373 | DY13: 448.0001 | DZ13: 2.616 | EA13: 12.074 | EB13: A | EC13: 11 | ED13: 4934.6587 | EE13: 735.149 | EF13: 2.894 | EG13: 2.527 | EI13: 11 | EJ13: 3710.3796 | EK13: 1308.0002 | EL13: 2.804 | EM13: 6.338 | EN13: A | EP13: 11 | EQ13: 11403.3438 | ER13: 627,113* | ES13: 2,898* | ET13: 2,585* | EU13: ABC
A14: 12 | B14: 488296.5938 | C14: 1990.957 | D14: 4.158 | E14: -4.339 | G14: 12 | H14: 0 | I14: 0 | J14: 3.817 | K14: 7.629 | M14: 12 | N14: 3818.0203 | O14: 307.052 | P14: 3.874 | Q14: 6.529 | S14: 12 | T14: 689.0923 | U14: 241 | V14: 2.859 | W14: 10.624 | Y14: 12 | Z14: 29005.8242 | AA14: 851 | AB14: 31.63 | AC14: 10.704 | AD14: A | AE14: 12 | AF14: 3038.7024 | AG14: 268.365 | AH14: 2.886 | AI14: 7.349 | AK14: 12 | AL14: 5487.0405 | AM14: 324.213 | AN14: 5.504 | AO14: 1.908 | AP14: A | AQ14: 12 | AR14: 14347.0654 | AS14: 847.052 | AT14: 3.404 | AU14: -2.515 | AW14: 12 | AX14: 3723.2329 | AY14: 317.289 | AZ14: 3.482 | BA14: 3.562 | BB14: A | BC14: 12 | BD14: 12414.4346 | BE14: 4004.939 | BF14: 3.01 | BG14: 3.798 | BI14: 12 | BJ14: 2925.7053 | BK14: 950 | BL14: 3 | BM14: 3.775 | BO14: 12 | BP14: 488.4007 | BQ14: 147 | BR14: 3.257 | BS14: 6.378 | BT14: A | BU14: 12 | BV14: 5277.6777 | BW14: 681.654 | BX14: 3.306 | BY14: 5.042 | BZ14: A | CA14: 12 | CB14: 4146.1118 | CC14: 1064 | CD14: 3.707 | CE14: -1.234 | CF14: A | CG14: 12 | CH14: 18406.4922 | CI14: 536.0001 | CJ14: 31.755 | CK14: 10.047 | CM14: 12 | CN14: 15409.9355 | CO14: 1069.832 | CP14: 3.793 | CQ14: 7.125 | CS14: 12 | CT14: 21166.0254 | CU14: 333.722 | CV14: 3.038 | CW14: -2.54 | CX14: A | CY14: 12 | CZ14: 24719.0273 | DA14: 2085,426* | DB14: 2,890* | DC14: -1,636* | DD14: ABC | DE14: 12 | DF14: 59476.0938 | DG14: 1749.0002 | DH14: 31.566 | DI14: 10.705 | DK14: 12 | DL14: 1285.9254 | DM14: 451 | DN14: 2.806 | DO14: 6.972 | DP14: A | DQ14: 12 | DR14: 687.2892 | DS14: 198 | DT14: 3.406 | DU14: 7.274 | DV14: A | DW14: 12 | DX14: 1259.2786 | DY14: 481.0001 | DZ14: 2.616 | EA14: 11.201 | EC14: 12 | ED14: 5417.813 | EE14: 872.381 | EF14: 2.862 | EG14: 1.142 | EI14: 12 | EJ14: 3680.4663 | EK14: 1297.0002 | EL14: 2.791 | EM14: 6.658 | EN14: A | EP14: 12 | EQ14: 10959.8252 | ER14: 670.755 | ES14: 2.857 | ET14: 2.46 | EU14: A
A15: 13 | B15: 519077.2188 | C15: 2248.074 | D15: 4.155 | E15: -4.618 | G15: 13 | H15: 0 | I15: 0 | J15: 3.779 | K15: 7.084 | M15: 13 | N15: 5000.4077 | O15: 523.591 | P15: 3.89 | Q15: 4.892 | S15: 13 | T15: 943.959 | U15: 332.0001 | V15: 2.827 | W15: 8.818 | X15: A | Y15: 13 | Z15: 32766.8398 | AA15: 962 | AB15: 31.952 | AC15: 13.039 | AE15: 13 | AF15: 3808.9377 | AG15: 414.691 | AH15: 2.899 | AI15: 6.534 | AK15: 13 | AL15: 5503.4014 | AM15: 251.118 | AN15: 5.538 | AO15: 2.453 | AQ15: 13 | AR15: 17268.7246 | AS15: 1221.929 | AT15: 3.443 | AU15: -3.108 | AW15: 13 | AX15: 4823.8379 | AY15: 543.919 | AZ15: 3.431 | BA15: 2.855 | BB15: A | BC15: 13 | BD15: 15633.7314 | BE15: 5107.4834 | BF15: 2.967 | BG15: 3.05 | BI15: 13 | BJ15: 3502.4287 | BK15: 1165 | BL15: 2.942 | BM15: 4.256 | BO15: 13 | BP15: 596.0737 | BQ15: 176 | BR15: 3.308 | BS15: 6.221 | BT15: A | BU15: 13 | BV15: 5410.3613 | BW15: 686.248 | BX15: 3.292 | BY15: 5.13 | BZ15: A | CA15: 13 | CB15: 5611.4683 | CC15: 1450 | CD15: 3.67 | CE15: -2.11 | CG15: 13 | CH15: 25990.2637 | CI15: 745.0001 | CJ15: 32.054 | CK15: 8.745 | CM15: 13 | CN15: 21633.0039 | CO15: 2149.851 | CP15: 3.751 | CQ15: 3.563 | CS15: 13 | CT15: 29432.4336 | CU15: 625.199 | CV15: 3.011 | CW15: -3.567 | CX15: A | CY15: 13 | CZ15: 25415.9785 | DA15: 1157.775 | DB15: 2.808 | DC15: -1.48 | DE15: 13 | DF15: 76551.5078 | DG15: 2223.0005 | DH15: 31.797 | DI15: 9.529 | DK15: 13 | DL15: 1805.3545 | DM15: 631 | DN15: 2.806 | DO15: 5.981 | DP15: A | DQ15: 13 | DR15: 867.1215 | DS15: 249 | DT15: 3.401 | DU15: 5.118 | DV15: A | DW15: 13 | DX15: 1681.3478 | DY15: 645.0001 | DZ15: 2.597 | EA15: 9.972 | EC15: 13 | ED15: 6812.5615 | EE15: 1358.388 | EF15: 2.925 | EG15: 1.553 | EI15: 13 | EJ15: 4572.771 | EK15: 1615.0002 | EL15: 2.775 | EM15: 5.186 | EP15: 13 | EQ15: 14199.1191 | ER15: 1133.302 | ES15: 2.864 | ET15: 1.341 | EU15: A
A16: 14 | B16: 509459.5938 | C16: 2168.031 | D16: 4.164 | E16: -4.529 | F16: B | G16: 14 | H16: 0 | I16: 0 | J16: 3.799 | K16: 10.68 | M16: 14 | N16: 4071.9858 | O16: 352.481 | P16: 3.879 | Q16: 7.447 | S16: 14 | T16: 755.6148 | U16: 266.0001 | V16: 2.849 | W16: 11.37 | Y16: 14 | Z16: 30251.0605 | AA16: 873 | AB16: 32.108 | AC16: 10.679 | AD16: A | AE16: 14 | AF16: 3233.4514 | AG16: 302.977 | AH16: 2.934 | AI16: 9.117 | AK16: 14 | AL16: 4630.479 | AM16: 206.412 | AN16: 5.533 | AO16: 5.207 | AP16: A | AQ16: 14 | AR16: 13873.7881 | AS16: 795.702 | AT16: 3.425 | AU16: -1.55 | AW16: 14 | AX16: 4112.5396 | AY16: 397.578 | AZ16: 3.468 | BA16: 5.423 | BB16: A | BC16: 14 | BD16: 14048.2139 | BE16: 4582.3174 | BF16: 2.995 | BG16: 5.052 | BI16: 14 | BJ16: 3135.509 | BK16: 1023 | BL16: 3.004 | BM16: 5.163 | BO16: 14 | BP16: 472.907 | BQ16: 142 | BR16: 3.285 | BS16: 8.786 | BT16: A | BU16: 14 | BV16: 5237.1753 | BW16: 645.033 | BX16: 3.301 | BY16: 6.328 | BZ16: A | CA16: 14 | CB16: 4202.4609 | CC16: 1077 | CD16: 3.755 | CE16: 1.502 | CG16: 14 | CH16: 19422.1543 | CI16: 560.0001 | CJ16: 32.257 | CK16: 11.646 | CM16: 14 | CN16: 15887.1025 | CO16: 1168.811 | CP16: 3.793 | CQ16: 8.808 | CS16: 14 | CT16: 18040.5059 | CU16: 260.601 | CV16: 3.048 | CW16: -0.954 | CX16: A | CY16: 14 | CZ16: 23466.2031 | DA16: 987.793 | DB16: 2.805 | DC16: -0.501 | DD16: A | DE16: 14 | DF16: 53106.9414 | DG16: 1544.0002 | DH16: 32.095 | DI16: 12.061 | DK16: 14 | DL16: 1268.7531 | DM16: 448 | DN16: 2.812 | DO16: 9.244 | DP16: A | DQ16: 14 | DR16: 673.0335 | DS16: 196 | DT16: 3.371 | DU16: 7.256 | DV16: A | DW16: 14 | DX16: 1401.7917 | DY16: 538.0001 | DZ16: 2.616 | EA16: 12.058 | EC16: 14 | ED16: 5672.2358 | EE16: 933.778 | EF16: 2.955 | EG16: 3.559 | EH16: A | EI16: 14 | EJ16: 4057.6611 | EK16: 1430.0002 | EL16: 2.802 | EM16: 6.614 | EP16: 14 | EQ16: 11772.6719 | ER16: 774.08 | ES16: 2.839 | ET16: 1.626
A17: 15 | B17: 453761.5625 | C17: 1720.929 | D17: 4.141 | E17: -4.197 | F17: B | G17: 15 | H17: 0 | I17: 0 | J17: 3.838 | K17: 16.314 | L17: B | M17: 15 | N17: 2247.3582 | O17: 110.794 | P17: 3.866 | Q17: 13.007 | R17: B | S17: 15 | T17: 357.5203 | U17: 128 | V17: 2.836 | W17: 14.396 | X17: AB | Y17: 15 | Z17: 21104.7559 | AA17: 606 | AB17: 32.597 | AC17: 13.042 | AD17: AB | AE17: 15 | AF17: 2086.8105 | AG17: 128.735 | AH17: 2.955 | AI17: 12.69 | AJ17: AB | AK17: 15 | AL17: 3648.2446 | AM17: 253.753 | AN17: 5.523 | AO17: 9.544 | AP17: AB | AQ17: 15 | AR17: 8268.7324 | AS17: 287.349 | AT17: 3.41 | AU17: 0.79 | AV17: AB | AW17: 15 | AX17: 2544.0698 | AY17: 160.717 | AZ17: 3.477 | BA17: 10.489 | BB17: AB | BC17: 15 | BD17: 8340.4385 | BE17: 2693.4146 | BF17: 3.102 | BG17: 10.181 | BH17: B | BI17: 15 | BJ17: 1888.0664 | BK17: 626 | BL17: 3.022 | BM17: 11.236 | BN17: AB | BO17: 15 | BP17: 131.5454 | BQ17: 41 | BR17: 3.271 | BS17: 14.738 | BT17: AB | BU17: 15 | BV17: 5062.626 | BW17: 635.375 | BX17: 3.357 | BY17: 10.114 | BZ17: AB | CA17: 15 | CB17: 2335.8313 | CC17: 602 | CD17: 3.796 | CE17: 6.796 | CF17: AB | CG17: 15 | CH17: 11554.1348 | CI17: 333.0001 | CJ17: 32.733 | CK17: 14.572 | CL17: AB | CM17: 15 | CN17: 10642.9805 | CO17: 528.463 | CP17: 3.807 | CQ17: 13.077 | CR17: B | CS17: 15 | CT17: 12835.5527 | CU17: 119.761 | CV17: 3.077 | CW17: 1.513 | CX17: AB | CY17: 15 | CZ17: 20435.5801 | DA17: 745.264 | DB17: 2.797 | DC17: 0.033 | DD17: B | DE17: 15 | DF17: 38591.1563 | DG17: 1113.0002 | DH17: 32.613 | DI17: 13.67 | DJ17: AB | DK17: 15 | DL17: 671.0677 | DM17: 241 | DN17: 2.81 | DO17: 13.786 | DP17: B | DQ17: 15 | DR17: 211.7042 | DS17: 67 | DT17: 3.048 | DU17: 13.067 | DV17: AB | DW17: 15 | DX17: 835.0231 | DY17: 320.0001 | DZ17: 2.657 | EA17: 14.685 | EB17: AB | EC17: 15 | ED17: 3290.625 | EE17: 338.009 | EF17: 3.008 | EG17: 7.036 | EH17: AB | EI17: 15 | EJ17: 2409.6428 | EK17: 868.0001 | EL17: 2.773 | EM17: 11.414 | EN17: AB | EP17: 15 | EQ17: 6735.8765 | ER17: 267.657 | ES17: 2.893 | ET17: 7.173 | EU17: B
A18: 16 | B18: 452640.3125 | C18: 1713.011 | D18: 4.119 | E18: -3.963 | G18: 16 | H18: 0 | I18: 0 | J18: 3.81 | K18: 19.249 | M18: 16 | N18: 1850.0697 | O18: 76.599 | P18: 3.858 | Q18: 15.661 | R18: B | S18: 16 | T18: 274.1808 | U18: 99 | V18: 2.827 | W18: 16.347 | Y18: 16 | Z18: 16263.0254 | AA18: 466 | AB18: 32.705 | AC18: 14.434 | AD18: A | AE18: 16 | AF18: 1810.2158 | AG18: 101.103 | AH18: 2.992 | AI18: 15.939 | AK18: 16 | AL18: 3869.5996 | AM18: 274.809 | AN18: 5.51 | AO18: 10.904 | AP18: A | AQ18: 16 | AR18: 8009.5693 | AS18: 278,168* | AT18: 3,401* | AU18: 2,616* | AV18: A C | AW18: 16 | AX18: 2288.8638 | AY18: 139.802 | AZ18: 3.353 | BA18: 12.78 | BB18: A | BC18: 16 | BD18: 6638.9019 | BE18: 2148.5132 | BF18: 3.139 | BG18: 14.197 | BI18: 16 | BJ18: 1596.1702 | BK18: 548 | BL18: 2.962 | BM18: 14.539 | BN18: A | BO18: 16 | BP18: 84.1582 | BQ18: 26 | BR18: 3.28 | BS18: 15.166 | BU18: 16 | BV18: 6161.0728 | BW18: 887.321 | BX18: 3.333 | BY18: 11.397 | BZ18: A | CA18: 16 | CB18: 2168.8562 | CC18: 566 | CD18: 3.78 | CE18: 8.215 | CF18: AB | CG18: 16 | CH18: 10806.0703 | CI18: 310.0001 | CJ18: 32.833 | CK18: 14.606 | CL18: A | CM18: 16 | CN18: 10087.875 | CO18: 471.793 | CP18: 3.807 | CQ18: 13.019 | CS18: 16 | CT18: 12207.5176 | CU18: 50.727 | CV18: 3.084 | CW18: 0.4 | CX18: A | CY18: 16 | CZ18: 20626.0371 | DA18: 760.802 | DB18: 2.793 | DC18: 0.626 | DE18: 16 | DF18: 36994.0664 | DG18: 1055.0002 | DH18: 32.722 | DI18: 12.268 | DJ18: A | DK18: 16 | DL18: 585.4046 | DM18: 214 | DN18: 2.774 | DO18: 14.897 | DP18: A | DQ18: 16 | DR18: 312.4756 | DS18: 115 | DT18: 2.721 | DU18: 14.054 | DV18: A | DW18: 16 | DX18: 576.9864 | DY18: 223 | DZ18: 2.682 | EA18: 18.769 | EB18: A | EC18: 16 | ED18: 2715.2893 | EE18: 244.272 | EF18: 3.028 | EG18: 10.791 | EH18: A | EI18: 16 | EJ18: 2172.6006 | EK18: 790.0001 | EL18: 2.775 | EM18: 13.614 | EP18: 16 | EQ18: 5854.499 | ER18: 210.012 | ES18: 2.896 | ET18: 10.204
A19: 17 | B19: 485757.0938 | C19: 1981.431 | D19: 4.122 | E19: -4.714 | G19: 17 | H19: 0 | I19: 0 | J19: 3.773 | K19: 11.122 | M19: 17 | N19: 2959.6626 | O19: 190.318 | P19: 3.867 | Q19: 8.316 | S19: 17 | T19: 470.1586 | U19: 167 | V19: 2.818 | W19: 10.339 | Y19: 17 | Z19: 21229.2949 | AA19: 606 | AB19: 32.555 | AC19: 11.365 | AD19: A | AE19: 17 | AF19: 2445.0999 | AG19: 170.868 | AH19: 2.928 | AI19: 8.63 | AK19: 17 | AL19: 4607.9463 | AM19: 273.623 | AN19: 5.556 | AO19: 4.375 | AP19: AB | AQ19: 17 | AR19: 10597.9678 | AS19: 474.639 | AT19: 3.363 | AU19: -0.89 | AW19: 17 | AX19: 3341.7332 | AY19: 278.375 | AZ19: 3.262 | BA19: 5.186 | BB19: A | BC19: 17 | BD19: 9723.4746 | BE19: 3180.6167 | BF19: 2.982 | BG19: 5.242 | BI19: 17 | BJ19: 2440.1665 | BK19: 807 | BL19: 2.977 | BM19: 5.922 | BO19: 17 | BP19: 333.2963 | BQ19: 100 | BR19: 3.277 | BS19: 7.747 | BU19: 17 | BV19: 4815.8452 | BW19: 559.869 | BX19: 3.268 | BY19: 6.041 | BZ19: A | CA19: 17 | CB19: 3134.9854 | CC19: 820 | CD19: 3.672 | CE19: 1.305 | CG19: 17 | CH19: 14910.1904 | CI19: 424.0001 | CJ19: 32.692 | CK19: 11.487 | CL19: A | CM19: 17 | CN19: 12226.8994 | CO19: 690.675 | CP19: 3.772 | CQ19: 8.854 | CS19: 17 | CT19: 17303.3164 | CU19: 94.735 | CV19: 3.02 | CW19: -2.691 | CY19: 17 | CZ19: 20769.375 | DA19: 766.137 | DB19: 2.795 | DC19: -0.718 | DE19: 17 | DF19: 41890.1563 | DG19: 1195.0002 | DH19: 32.57 | DI19: 11.299 | DK19: 17 | DL19: 992.3799 | DM19: 360 | DN19: 2.738 | DO19: 9.493 | DP19: A | DQ19: 17 | DR19: 367.5485 | DS19: 133 | DT19: 2.215 | DU19: 7.435 | DV19: A | DW19: 17 | DX19: 875.5869 | DY19: 332.0001 | DZ19: 2.648 | EA19: 11.667 | EB19: A | EC19: 17 | ED19: 3870.4678 | EE19: 448.341 | EF19: 2.942 | EG19: 4.028 | EI19: 17 | EJ19: 2575.8621 | EK19: 924.0001 | EL19: 2.765 | EM19: 8.258 | EP19: 17 | EQ19: 7545.6235 | ER19: 327.926 | ES19: 2.835 | ET19: 4.81
A20: 18 | B20: 475701.875 | C20: 1907.242 | D20: 4.128 | E20: -4.556 | G20: 18 | H20: 0 | I20: 0 | J20: 3.797 | K20: 10.74 | M20: 18 | N20: 3059.717 | O20: 198.775 | P20: 3.867 | Q20: 7.151 | S20: 18 | T20: 616.3621 | U20: 219 | V20: 2.797 | W20: 8.746 | Y20: 18 | Z20: 26317.6172 | AA20: 769 | AB20: 32.335 | AC20: 14.967 | AD20: A | AE20: 18 | AF20: 2666.1643 | AG20: 202.286 | AH20: 2.91 | AI20: 6.541 | AK20: 18 | AL20: 4516.0337 | AM20: 253.922 | AN20: 5.549 | AO20: 4.505 | AP20: A | AQ20: 18 | AR20: 10601.8809 | AS20: 469.973 | AT20: 3.362 | AU20: -1.151 | AW20: 18 | AX20: 3160.3416 | AY20: 250,965* | AZ20: 3,287* | BA20: 5,949* | BB20: ABC | BC20: 18 | BD20: 10547.918 | BE20: 3451.4517 | BF20: 2.98 | BG20: 4.562 | BI20: 18 | BJ20: 2370.5825 | BK20: 769 | BL20: 3.028 | BM20: 5.792 | BN20: A | BO20: 18 | BP20: 310.5195 | BQ20: 94 | BR20: 3.275 | BS20: 9.703 | BU20: 18 | BV20: 5403.9238 | BW20: 734.309 | BX20: 3.246 | BY20: 5.474 | BZ20: A | CA20: 18 | CB20: 3206.6716 | CC20: 814 | CD20: 3.785 | CE20: 1.192 | CG20: 18 | CH20: 15159.0273 | CI20: 434.0001 | CJ20: 32.469 | CK20: 11.547 | CL20: A | CM20: 18 | CN20: 13019.1279 | CO20: 771.123 | CP20: 3.787 | CQ20: 8.19 | CS20: 18 | CT20: 17739.3691 | CU20: 101.479 | CV20: 3.008 | CW20: -3.006 | CY20: 18 | CZ20: 22377.1387 | DA20: 889.294 | DB20: 2.798 | DC20: -1.489 | DE20: 18 | DF20: 50728.1523 | DG20: 1455.0002 | DH20: 32.321 | DI20: 10.675 | DK20: 18 | DL20: 977.4239 | DM20: 349 | DN20: 2.776 | DO20: 8.912 | DP20: A | DQ20: 18 | DR20: 524.9344 | DS20: 185 | DT20: 2.587 | DU20: 6.077 | DV20: A | DW20: 18 | DX20: 1082.9496 | DY20: 410.0001 | DZ20: 2.619 | EA20: 8.302 | EB20: A | EC20: 18 | ED20: 3895.123 | EE20: 455.467 | EF20: 2.927 | EG20: 2.704 | EH20: A | EI20: 18 | EJ20: 3003.2671 | EK20: 1054.0002 | EL20: 2.8 | EM20: 6.617 | EP20: 18 | EQ20: 9564.7109 | ER20: 535.315 | ES20: 2.829 | ET20: 1.597
A21: 19 | B21: 477783.125 | C21: 1913.517 | D21: 4.117 | E21: -4.652 | F21: B | G21: 19 | H21: 0 | I21: 0 | J21: 3.786 | K21: 9.543 | M21: 19 | N21: 3800.2986 | O21: 306.411 | P21: 3.871 | Q21: 5.897 | S21: 19 | T21: 736.9147 | U21: 262.0001 | V21: 2.791 | W21: 8.408 | Y21: 19 | Z21: 28794.3789 | AA21: 850 | AB21: 32.25 | AC21: 16.949 | AD21: A | AE21: 19 | AF21: 3020.7622 | AG21: 257.072 | AH21: 2.914 | AI21: 6.963 | AK21: 19 | AL21: 6407.4702 | AM21: 400.935 | AN21: 5.545 | AO21: 4.095 | AP21: A | AQ21: 19 | AR21: 12493.2002 | AS21: 646.341 | AT21: 3.374 | AU21: -1.581 | AW21: 19 | AX21: 3428.4355 | AY21: 289.817 | AZ21: 3.248 | BA21: 5.388 | BB21: A | BC21: 19 | BD21: 12266.9063 | BE21: 4042.5024 | BF21: 2.955 | BG21: 4.334 | BI21: 19 | BJ21: 2705.5396 | BK21: 888 | BL21: 2.988 | BM21: 5.813 | BO21: 19 | BP21: 438.3329 | BQ21: 133 | BR21: 3.264 | BS21: 9.054 | BU21: 19 | BV21: 5868.4663 | BW21: 859.12 | BX21: 3.219 | BY21: 5.512 | BZ21: A | CA21: 19 | CB21: 3480.7952 | CC21: 881 | CD21: 3.794 | CE21: 1.341 | CG21: 19 | CH21: 14916.9219 | CI21: 429.0001 | CJ21: 32.395 | CK21: 11.79 | CL21: A | CM21: 19 | CN21: 12256.3203 | CO21: 690.474 | CP21: 3.791 | CQ21: 9.594 | CS21: 19 | CT21: 17565.3516 | CU21: 99.929 | CV21: 3.022 | CW21: -1.973 | CY21: 19 | CZ21: 22419.2871 | DA21: 900.856 | DB21: 2.794 | DC21: -0.03 | DE21: 19 | DF21: 42079.5586 | DG21: 1216.0002 | DH21: 32.267 | DI21: 11.939 | DK21: 19 | DL21: 1095.6304 | DM21: 392 | DN21: 2.77 | DO21: 8.959 | DP21: AB | DQ21: 19 | DR21: 684.9485 | DS21: 240 | DT21: 2.798 | DU21: 6.167 | DV21: A | DW21: 19 | DX21: 1425.4692 | DY21: 545.0001 | DZ21: 2.604 | EA21: 9.606 | EC21: 19 | ED21: 4677.0786 | EE21: 637.061 | EF21: 2.914 | EG21: 3.757 | EI21: 19 | EJ21: 3216.0352 | EK21: 1130.0002 | EL21: 2.806 | EM21: 7.648 | EP21: 19 | EQ21: 9098.627 | ER21: 494.216 | ES21: 2.837 | ET21: 3.712
A22: 20 | B22: 437103.8438 | C22: 1616.723 | D22: 4.12 | E22: -3.85 | G22: 20 | H22: 0 | I22: 0 | J22: 3.835 | K22: 18.109 | M22: 20 | N22: 2496.1272 | O22: 139.31 | P22: 3.853 | Q22: 12.754 | S22: 20 | T22: 510.9948 | U22: 183 | V22: 2.822 | W22: 13.699 | Y22: 20 | Z22: 20570.1445 | AA22: 609 | AB22: 32.219 | AC22: 16.721 | AD22: A | AE22: 20 | AF22: 2300.6211 | AG22: 160.386 | AH22: 2.937 | AI22: 12.287 | AK22: 20 | AL22: 5899.1675 | AM22: 415.783 | AN22: 5.509 | AO22: 8.595 | AP22: A | AQ22: 20 | AR22: 8424.6172 | AS22: 308.695 | AT22: 3.377 | AU22: 1.269 | AW22: 20 | AX22: 2545.1118 | AY22: 173.408 | AZ22: 3.379 | BA22: 12.165 | BB22: A | BC22: 20 | BD22: 8424.6592 | BE22: 2763.8257 | BF22: 3.063 | BG22: 10.943 | BI22: 20 | BJ22: 2010.1467 | BK22: 667 | BL22: 3.02 | BM22: 11.657 | BN22: A | BO22: 20 | BP22: 187.1661 | BQ22: 58 | BR22: 3.289 | BS22: 15.527 | BU22: 20 | BV22: 3816.0696 | BW22: 349.212 | BX22: 3.313 | BY22: 11.769 | BZ22: A | CA22: 20 | CB22: 2514.114 | CC22: 635 | CD22: 3.892 | CE22: 7.241 | CF22: A | CG22: 20 | CH22: 11382.7383 | CI22: 332.0001 | CJ22: 32.346 | CK22: 14.771 | CL22: A | CM22: 20 | CN22: 9994.0371 | CO22: 478.741 | CP22: 3.791 | CQ22: 14.097 | CS22: 20 | CT22: 13387.6055 | CU22: 114.027 | CV22: 3.038 | CW22: 1.434 | CX22: A | CY22: 20 | CZ22: 21369.1934 | DA22: 820.778 | DB22: 2.788 | DC22: 0.837 | DE22: 20 | DF22: 34320.5508 | DG22: 999.0001 | DH22: 32.238 | DI22: 13.01 | DJ22: A | DK22: 20 | DL22: 747.2966 | DM22: 269 | DN22: 2.814 | DO22: 14.842 | DP22: A | DQ22: 20 | DR22: 550.8683 | DS22: 197 | DT22: 2.783 | DU22: 10.475 | DV22: A | DW22: 20 | DX22: 1001.0691 | DY22: 385.0001 | DZ22: 2.631 | EA22: 13.788 | EB22: A | EC22: 20 | ED22: 3466.9333 | EE22: 373.535 | EF22: 2.947 | EG22: 6.705 | EH22: A | EI22: 20 | EJ22: 2613.1404 | EK22: 938.0001 | EL22: 2.77 | EM22: 10.459 | EP22: 20 | EQ22: 7017.1763 | ER22: 289.884 | ES22: 2.853 | ET22: 6.312
A23: 21 | B23: 427708.875 | C23: 1544.727 | D23: 4.069 | E23: -3.374 | G23: 21 | H23: 0 | I23: 0 | J23: 3.794 | K23: 18.271 | M23: 21 | N23: 2067.3972 | O23: 99.634 | P23: 3.844 | Q23: 15.777 | S23: 21 | T23: 354.7759 | U23: 128 | V23: 2.843 | W23: 16.757 | Y23: 21 | Z23: 17840.2637 | AA23: 521 | AB23: 32.276 | AC23: 14.509 | AD23: A | AE23: 21 | AF23: 1895.4194 | AG23: 111.485 | AH23: 2.967 | AI23: 16.179 | AK23: 21 | AL23: 4836.0186 | AM23: 362.617 | AN23: 5.494 | AO23: 10.648 | AP23: A | AQ23: 21 | AR23: 8022.3135 | AS23: 280.076 | AT23: 3.383 | AU23: 3.664 | AW23: 21 | AX23: 2259.9434 | AY23: 135.243 | AZ23: 3.363 | BA23: 12.922 | BB23: A | BC23: 21 | BD23: 7482.978 | BE23: 2454.937 | BF23: 3.082 | BG23: 13.412 | BI23: 21 | BJ23: 1628.0564 | BK23: 549 | BL23: 3.018 | BM23: 14.488 | BN23: A | BO23: 21 | BP23: 96.2065 | BQ23: 30 | BR23: 3.297 | BS23: 15.7 | BU23: 21 | BV23: 3650.7383 | BW23: 319.397 | BX23: 3.335 | BY23: 14.132 | BZ23: A | CA23: 21 | CB23: 2162.7605 | CC23: 554 | CD23: 3.855 | CE23: 8.748 | CF23: A | CG23: 21 | CH23: 9823.9932 | CI23: 288.0001 | CJ23: 32.396 | CK23: 15.772 | CL23: A | CM23: 21 | CN23: 9267.6855 | CO23: 408.883 | CP23: 3.778 | CQ23: 14.019 | CS23: 21 | CT23: 12232.291 | CU23: 121.449 | CV23: 3.048 | CW23: 3.314 | CX23: A | CY23: 21 | CZ23: 20409.8027 | DA23: 753.491 | DB23: 2.78 | DC23: 2.425 | DE23: 21 | DF23: 35044.5391 | DG23: 1019.0001 | DH23: 32.289 | DI23: 13.228 | DJ23: A | DK23: 21 | DL23: 577.6258 | DM23: 211 | DN23: 2.804 | DO23: 16.346 | DQ23: 21 | DR23: 383.6474 | DS23: 139 | DT23: 2.784 | DU23: 14.092 | DV23: A | DW23: 21 | DX23: 869.606 | DY23: 337.0001 | DZ23: 2.656 | EA23: 18.365 | EB23: A | EC23: 21 | ED23: 3049.2532 | EE23: 312.463 | EF23: 2.977 | EG23: 11.237 | EH23: A | EI23: 21 | EJ23: 2406.8748 | EK23: 887.0001 | EL23: 2.744 | EM23: 13.673 | EP23: 21 | EQ23: 6864.9683 | ER23: 306.268 | ES23: 2.892 | ET23: 9.916
A24: 22 | B24: 418564.25 | C24: 1484.305 | D24: 4.084 | E24: -3.806 | F24: B | G24: 22 | H24: 0 | I24: 0 | J24: 3.818 | K24: 15.572 | L24: B | M24: 22 | N24: 1679.7689 | O24: 61.995 | P24: 3.863 | Q24: 12.272 | R24: B | S24: 22 | T24: 268.2939 | U24: 96 | V24: 2.845 | W24: 13.091 | X24: B | Y24: 22 | Z24: 17141.1289 | AA24: 495 | AB24: 32.567 | AC24: 13.979 | AD24: AB | AE24: 22 | AF24: 1613.4797 | AG24: 79.198 | AH24: 2.96 | AI24: 12.078 | AJ24: B | AK24: 22 | AL24: 5727.312 | AM24: 448.708 | AN24: 5.401 | AO24: 7.369 | AP24: AB | AQ24: 22 | AR24: 7051.7715 | AS24: 211.953 | AT24: 3.358 | AU24: 2.594 | AV24: B | AW24: 22 | AX24: 2032.7576 | AY24: 103.402 | AZ24: 3.351 | BA24: 10.25 | BB24: AB | BC24: 22 | BD24: 6110.9668 | BE24: 1987.2971 | BF24: 3.073 | BG24: 10.452 | BH24: B | BI24: 22 | BJ24: 1360.177 | BK24: 455 | BL24: 3.002 | BM24: 10.976 | BN24: AB | BO24: 22 | BP24: 9.9155 | BQ24: 3 | BR24: 3.324 | BS24: 13.205 | BT24: B | BU24: 22 | BV24: 4539.1963 | BW24: 523.353 | BX24: 3.256 | BY24: 9.904 | BZ24: AB | CA24: 22 | CB24: 1790.0469 | CC24: 460 | CD24: 3.829 | CE24: 7.29 | CF24: AB | CG24: 22 | CH24: 8547.6338 | CI24: 248 | CJ24: 32.689 | CK24: 15.546 | CL24: AB | CM24: 22 | CN24: 8203.7695 | CO24: 318.671 | CP24: 3.791 | CQ24: 13.746 | CR24: B | CS24: 22 | CT24: 12312.5127 | CU24: 783,340* | CV24: 3,612* | CW24: 1,300* | CX24: ABC | CY24: 22 | CZ24: 19860.6816 | DA24: 706.692 | DB24: 2.786 | DC24: 0.601 | DD24: B | DE24: 22 | DF24: 30877.4766 | DG24: 889.0001 | DH24: 32.59 | DI24: 12.778 | DJ24: AB | DK24: 22 | DL24: 439.9872 | DM24: 160 | DN24: 2.792 | DO24: 13.865 | DP24: B | DQ24: 22 | DR24: 284.7664 | DS24: 102 | DT24: 2.798 | DU24: 11.296 | DV24: AB | DW24: 22 | DX24: 696.5787 | DY24: 266.0001 | DZ24: 2.659 | EA24: 14.093 | EB24: AB | EC24: 22 | ED24: 2408.6665 | EE24: 209.595 | EF24: 2.953 | EG24: 7.373 | EH24: AB | EI24: 22 | EJ24: 1903.4012 | EK24: 695.0001 | EL24: 2.745 | EM24: 10.924 | EN24: AB | EP24: 22 | EQ24: 5002.0293 | ER24: 147.18 | ES24: 2.871 | ET24: 8.561 | EU24: B
A25: 23 | B25: 411816.2188 | C25: 1436.028 | D25: 4.084 | E25: -3.135 | G25: 23 | H25: 0 | I25: 0 | J25: 3.82 | K25: 22.865 | M25: 23 | N25: 1354.7504 | O25: 42.617 | P25: 3.87 | Q25: 19.073 | S25: 23 | T25: 209.3124 | U25: 76 | V25: 2.854 | W25: 18.437 | Y25: 23 | Z25: 13830.4346 | AA25: 406 | AB25: 32.724 | AC25: 19.237 | AD25: A | AE25: 23 | AF25: 1473.7783 | AG25: 69.604 | AH25: 2.995 | AI25: 17.727 | AK25: 23 | AL25: 3474.0679 | AM25: 263.822 | AN25: 5.512 | AO25: 14.474 | AP25: A | AQ25: 23 | AR25: 5699.1841 | AS25: 143.23 | AT25: 3.404 | AU25: 6.285 | AV25: B | AW25: 23 | AX25: 1696.5118 | AY25: 74.29 | AZ25: 3.436 | BA25: 16.479 | BB25: A | BC25: 23 | BD25: 5523.8311 | BE25: 1806.697 | BF25: 3.145 | BG25: 16.906 | BI25: 23 | BJ25: 1229.1912 | BK25: 413 | BL25: 3.062 | BM25: 17.354 | BN25: A | BO25: 23 | BP25: 3.2929 | BQ25: 1 | BR25: 3.345 | BS25: 18.515 | BU25: 23 | BV25: 3954.0613 | BW25: 421.853 | BX25: 3.077 | BY25: 16.118 | BZ25: A | CA25: 23 | CB25: 1653.9645 | CC25: 426 | CD25: 3.886 | CE25: 12.111 | CF25: A | CG25: 23 | CH25: 7260.9004 | CI25: 211 | CJ25: 32.846 | CK25: 17.772 | CL25: A | CM25: 23 | CN25: 6938.8882 | CO25: 238.226 | CP25: 3.78 | CQ25: 18.074 | CS25: 23 | CT25: 14836.1445 | CU25: 1402.293 | CV25: 3.831 | CW25: 3.187 | CX25: A | CY25: 23 | CZ25: 19324.7949 | DA25: 677.904 | DB25: 2.782 | DC25: 3.843 | DE25: 23 | DF25: 25982.877 | DG25: 751.0001 | DH25: 32.757 | DI25: 15.607 | DJ25: A | DK25: 23 | DL25: 363.8476 | DM25: 132 | DN25: 2.865 | DO25: 18.921 | DP25: A | DQ25: 23 | DR25: 193.9552 | DS25: 71 | DT25: 2.787 | DU25: 17.105 | DV25: A | DW25: 23 | DX25: 538.4821 | DY25: 209 | DZ25: 2,688* | EA25: 20,875* | EB25: A C | EC25: 23 | ED25: 2013.6514 | EE25: 151.731 | EF25: 3.003 | EG25: 13.88 | EH25: A | EI25: 23 | EJ25: 1658.2209 | EK25: 617.0001 | EL25: 2.751 | EM25: 17.241 | EN25: A | EP25: 23 | EQ25: 4331.8745 | ER25: 113.835 | ES25: 2.92 | ET25: 14.957
A26: 24 | B26: 412562.2813 | C26: 1447.699 | D26: 4.082 | E26: -2.713 | F26: B | G26: 24 | H26: 0 | I26: 0 | J26: 3.816 | K26: 21.045 | M26: 24 | N26: 1196.2538 | O26: 33.917 | P26: 3.872 | Q26: 18.654 | R26: A | S26: 24 | T26: 177.5024 | U26: 65 | V26: 2.912 | W26: 19.482 | Y26: 24 | Z26: 12359.5068 | AA26: 365 | AB26: 32.512 | AC26: 18.868 | AE26: 24 | AF26: 1314.9005 | AG26: 57.043 | AH26: 2.983 | AI26: 18.123 | AK26: 24 | AL26: 3300.9194 | AM26: 253.034 | AN26: 5.473 | AO26: 14.566 | AP26: A | AQ26: 24 | AR26: 5952.8774 | AS26: 166.088 | AT26: 3.385 | AU26: 7.342 | AW26: 24 | AX26: 1709.8997 | AY26: 77.197 | AZ26: 3.385 | BA26: 15.402 | BC26: 24 | BD26: 4620.1577 | BE26: 1500.8318 | BF26: 3.176 | BG26: 18.741 | BI26: 24 | BJ26: 1165.3164 | BK26: 397 | BL26: 3.023 | BM26: 18.009 | BN26: A | BO26: 24 | BP26: 0 | BQ26: 0 | BR26: 3.352 | BS26: 18.997 | BU26: 24 | BV26: 4195.7534 | BW26: 497.213 | BX26: 3.261 | BY26: 17.104 | BZ26: A | CA26: 24 | CB26: 1521.8215 | CC26: 394 | CD26: 3.869 | CE26: 11.778 | CF26: A | CG26: 24 | CH26: 8135.123 | CI26: 237 | CJ26: 32.627 | CK26: 16.442 | CL26: A | CM26: 24 | CN26: 4358.4297 | CO26: 156.367 | CP26: 2.832 | CQ26: 15.881 | CR26: A | CS26: 24 | CT26: 16216.7607 | CU26: 1567.434 | CV26: 3.81 | CW26: 1.798 | CX26: A | CY26: 24 | CZ26: 19820.5 | DA26: 713.014 | DB26: 2.783 | DC26: 3.537 | DE26: 24 | DF26: 27701.2754 | DG26: 802.0001 | DH26: 32.536 | DI26: 14.338 | DJ26: A | DK26: 24 | DL26: 395.4256 | DM26: 145 | DN26: 2.824 | DO26: 18.559 | DP26: A | DQ26: 24 | DR26: 139.2731 | DS26: 51 | DT26: 2.786 | DU26: 19.978 | DV26: AB | DW26: 24 | DX26: 426.1559 | DY26: 167 | DZ26: 2.696 | EA26: 23.29 | EB26: A | EC26: 24 | ED26: 1914.0641 | EE26: 140.115 | EF26: 2.998 | EG26: 15.271 | EH26: A | EI26: 24 | EJ26: 1498.6943 | EK26: 569.0001 | EL26: 2.717 | EM26: 18.523 | EN26: A | EP26: 24 | EQ26: 4068.8862 | ER26: 99.717 | ES26: 2.929 | ET26: 15.64
A27: 25 | B27: 406654.4688 | C27: 1408.457 | D27: 4.081 | E27: -2.156 | G27: 25 | H27: 0 | I27: 0 | J27: 3.821 | K27: 22.415 | M27: 25 | N27: 1109.2523 | O27: 29.715 | P27: 3.878 | Q27: 19.161 | R27: A | S27: 25 | T27: 162.4769 | U27: 61 | V27: 2.823 | W27: 19.636 | Y27: 25 | Z27: 11959.29 | AA27: 355 | AB27: 32.349 | AC27: 19.159 | AD27: A | AE27: 25 | AF27: 1213.1925 | AG27: 49.463 | AH27: 2.979 | AI27: 18.248 | AK27: 25 | AL27: 3713.467 | AM27: 270.919 | AN27: 5.476 | AO27: 15.305 | AP27: A | AQ27: 25 | AR27: 5643.6196 | AS27: 142.727 | AT27: 3.405 | AU27: 8.377 | AW27: 25 | AX27: 1523.4207 | AY27: 61.88 | AZ27: 3.42 | BA27: 18.288 | BC27: 25 | BD27: 3871.7429 | BE27: 1305.6541 | BF27: 3,057* | BG27: 19,442* | BH27: A C | BI27: 25 | BJ27: 1044.0885 | BK27: 359 | BL27: 3.014 | BM27: 19.463 | BN27: A | BO27: 25 | BP27: 0 | BQ27: 0 | BR27: 3.357 | BS27: 20.057 | BU27: 25 | BV27: 4002.0376 | BW27: 426.426 | BX27: 3.274 | BY27: 17.715 | BZ27: A | CA27: 25 | CB27: 1342.382 | CC27: 347 | CD27: 3.923 | CE27: 14.374 | CF27: A | CG27: 25 | CH27: 6553.2036 | CI27: 194 | CJ27: 32.47 | CK27: 18.767 | CL27: A | CM27: 25 | CN27: 4286.3091 | CO27: 177.296 | CP27: 3.265 | CQ27: 19.127 | CR27: A | CS27: 25 | CT27: 12059.7139 | CU27: 914.96 | CV27: 3.809 | CW27: 4.179 | CX27: A | CY27: 25 | CZ27: 18875.5586 | DA27: 650.035 | DB27: 2.78 | DC27: 4.761 | DD27: A | DE27: 25 | DF27: 26294.6934 | DG27: 772.0001 | DH27: 32.385 | DI27: 15.915 | DJ27: A | DK27: 25 | DL27: 344.2188 | DM27: 126 | DN27: 2.841 | DO27: 20.201 | DP27: A | DQ27: 25 | DR27: 160.9093 | DS27: 59 | DT27: 2.791 | DU27: 18.302 | DV27: A | DW27: 25 | DX27: 400.031 | DY27: 156 | DZ27: 2.7 | EA27: 21.921 | EB27: AB | EC27: 25 | ED27: 1831.5876 | EE27: 127.91 | EF27: 3 | EG27: 16.603 | EH27: A | EI27: 25 | EJ27: 1538.085 | EK27: 582.0001 | EL27: 2.726 | EM27: 18.272 | EN27: A | EP27: 25 | EQ27: 3752.4226 | ER27: 84.915 | ES27: 2.939 | ET27: 15.675
A28: 26 | B28: 381634.6563 | C28: 1235.015 | D28: 4.083 | E28: -1.846 | G28: 26 | H28: 0 | I28: 0 | J28: 3.858 | K28: 21.326 | M28: 26 | N28: 1043.8112 | O28: 26.078 | P28: 3.873 | Q28: 19.788 | R28: A | S28: 26 | T28: 167.321 | U28: 63 | V28: 2.81 | W28: 19.55 | Y28: 26 | Z28: 12407.582 | AA28: 367 | AB28: 32.368 | AC28: 18.078 | AE28: 26 | AF28: 1204.5232 | AG28: 48.666 | AH28: 2.979 | AI28: 19.256 | AK28: 26 | AL28: 3155.4629 | AM28: 241.427 | AN28: 5.5 | AO28: 14.195 | AP28: A | AQ28: 26 | AR28: 5868.6001 | AS28: 150.187 | AT28: 3.356 | AU28: 7.384 | AW28: 26 | AX28: 1441.4139 | AY28: 55.55 | AZ28: 3.393 | BA28: 16.093 | BC28: 26 | BD28: 4137.5747 | BE28: 1419.033 | BF28: 3.009 | BG28: 19.016 | BI28: 26 | BJ28: 1011.0195 | BK28: 349 | BL28: 3.002 | BM28: 18.885 | BN28: A | BO28: 26 | BP28: 0 | BQ28: 0 | BR28: 3.357 | BS28: 19.023 | BU28: 26 | BV28: 3868.4324 | BW28: 399.101 | BX28: 3.267 | BY28: 17.664 | BZ28: A | CA28: 26 | CB28: 1269.8073 | CC28: 328 | CD28: 3.907 | CE28: 13.124 | CF28: A | CG28: 26 | CH28: 6076.6367 | CI28: 180 | CJ28: 32.475 | CK28: 18.762 | CL28: A | CM28: 26 | CN28: 6118.6509 | CO28: 235.207 | CP28: 2.991 | CQ28: 16.258 | CR28: A | CS28: 26 | CT28: 10460.3838 | CU28: 292.196 | CV28: 3.768 | CW28: 3.745 | CX28: A | CY28: 26 | CZ28: 18940.2461 | DA28: 649.12 | DB28: 2.779 | DC28: 2.767 | DE28: 26 | DF28: 27107.5859 | DG28: 785.0001 | DH28: 32.39 | DI28: 13.165 | DJ28: A | DK28: 26 | DL28: 332.2182 | DM28: 122 | DN28: 2.831 | DO28: 19.036 | DP28: A | DQ28: 26 | DR28: 122.7373 | DS28: 45 | DT28: 2.784 | DU28: 18.56 | DV28: AB | DW28: 26 | DX28: 360.7121 | DY28: 141 | DZ28: 2.693 | EA28: 22.237 | EB28: A | EC28: 26 | ED28: 1774.4421 | EE28: 120.468 | EF28: 2.977 | EG28: 15.483 | EH28: A | EI28: 26 | EJ28: 1455.9928 | EK28: 547.0001 | EL28: 2.744 | EM28: 17.497 | EN28: A | EP28: 26 | EQ28: 3582.458 | ER28: 74.574 | ES28: 2.932 | ET28: 14.887
A29: 27 | B29: 411414.3125 | C29: 1442.098 | D29: 4.08 | E29: -2.184 | G29: 27 | H29: 0 | I29: 0 | J29: 3.814 | K29: 18.444 | M29: 27 | N29: 1182.7644 | O29: 34.144 | P29: 3.877 | Q29: 16.551 | R29: A | S29: 27 | T29: 192.9604 | U29: 72 | V29: 2.811 | W29: 16.46 | Y29: 27 | Z29: 12929.9688 | AA29: 381 | AB29: 32.288 | AC29: 16.537 | AE29: 27 | AF29: 1319.09 | AG29: 57.043 | AH29: 2.976 | AI29: 16.344 | AK29: 27 | AL29: 2798.3054 | AM29: 205.978 | AN29: 5.466 | AO29: 12.635 | AP29: A | AQ29: 27 | AR29: 5944.5771 | AS29: 156.877 | AT29: 3.341 | AU29: 5.654 | AW29: 27 | AX29: 1588.3492 | AY29: 70.265 | AZ29: 3.358 | BA29: 13.836 | BC29: 27 | BD29: 4203.1558 | BE29: 1440.4822 | BF29: 2.985 | BG29: 15.093 | BH29: A | BI29: 27 | BJ29: 1111.7228 | BK29: 386 | BL29: 2.952 | BM29: 15.144 | BN29: A | BO29: 27 | BP29: 0 | BQ29: 0 | BR29: 3.368 | BS29: 16.833 | BU29: 27 | BV29: 3138.4819 | BW29: 238.508 | BX29: 3.279 | BY29: 15.287 | BZ29: A | CA29: 27 | CB29: 1385.929 | CC29: 358 | CD29: 3.881 | CE29: 11.039 | CF29: A | CG29: 27 | CH29: 6579.7383 | CI29: 195 | CJ29: 32.407 | CK29: 18.118 | CL29: A | CM29: 27 | CN29: 6388.4653 | CO29: 268.634 | CP29: 3.001 | CQ29: 16.229 | CS29: 27 | CT29: 11193.3408 | CU29: 378.988 | CV29: 3.735 | CW29: 2.641 | CX29: A | CY29: 27 | CZ29: 18736.7754 | DA29: 634.133 | DB29: 2.782 | DC29: 2.697 | DE29: 27 | DF29: 26471.0723 | DG29: 774.0001 | DH29: 32.323 | DI29: 14.524 | DJ29: A | DK29: 27 | DL29: 353.0031 | DM29: 130 | DN29: 2.824 | DO29: 17.478 | DP29: A | DQ29: 27 | DR29: 191.5282 | DS29: 70 | DT29: 2.787 | DU29: 15.775 | DV29: A | DW29: 27 | DX29: 440.9476 | DY29: 171 | DZ29: 2.687 | EA29: 18.376 | EB29: A | EC29: 27 | ED29: 1936.2441 | EE29: 143.124 | EF29: 2.945 | EG29: 11.955 | EH29: A | EI29: 27 | EJ29: 1564.5582 | EK29: 584.0001 | EL29: 2.736 | EM29: 15.441 | EN29: A | EP29: 27 | EQ29: 4041.2634 | ER29: 98.645 | ES29: 2.912 | ET29: 12.216
A30: 28 | B30: 397343.2813 | C30: 1344.105 | D30: 4.085 | E30: -1.774 | G30: 28 | H30: 0 | I30: 0 | J30: 3.836 | K30: 19.814 | M30: 28 | N30: 1146.5345 | O30: 32.277 | P30: 3.879 | Q30: 17.468 | R30: AB | S30: 28 | T30: 187.2886 | U30: 70 | V30: 2.836 | W30: 17.939 | Y30: 28 | Z30: 10725.0986 | AA30: 318 | AB30: 32.202 | AC30: 17.482 | AE30: 28 | AF30: 1325.4629 | AG30: 59.623 | AH30: 2.978 | AI30: 17.352 | AK30: 28 | AL30: 2587.4736 | AM30: 202.248 | AN30: 5.475 | AO30: 14.181 | AP30: A | AQ30: 28 | AR30: 6232.0508 | AS30: 168.746 | AT30: 3.379 | AU30: 6.424 | AW30: 28 | AX30: 1567.4196 | AY30: 67.266 | AZ30: 3.381 | BA30: 14.452 | BC30: 28 | BD30: 4647.2271 | BE30: 1610.2219 | BF30: 2.97 | BG30: 16.697 | BH30: A | BI30: 28 | BJ30: 1138.4521 | BK30: 397 | BL30: 2.953 | BM30: 16.13 | BN30: A | BO30: 28 | BP30: 0 | BQ30: 0 | BR30: 3.357 | BS30: 17.259 | BU30: 28 | BV30: 2938.062 | BW30: 209.745 | BX30: 3.283 | BY30: 16.286 | BZ30: A | CA30: 28 | CB30: 1445.4189 | CC30: 374 | CD30: 3.884 | CE30: 11.722 | CF30: A | CG30: 28 | CH30: 6633.5386 | CI30: 197 | CJ30: 32.314 | CK30: 18.11 | CL30: A | CM30: 28 | CN30: 6338.3521 | CO30: 262.69 | CP30: 2.935 | CQ30: 16.932 | CS30: 28 | CT30: 10570.29 | CU30: 515.439 | CV30: 3.72 | CW30: 4.553 | CX30: A | CY30: 28 | CZ30: 19179.2129 | DA30: 665.787 | DB30: 2.785 | DC30: 3.54 | DE30: 28 | DF30: 27879.4023 | DG30: 820.0001 | DH30: 32.226 | DI30: 15.203 | DJ30: A | DK30: 28 | DL30: 341.0167 | DM30: 126 | DN30: 2.823 | DO30: 17.674 | DP30: A | DQ30: 28 | DR30: 183.3574 | DS30: 67 | DT30: 2.787 | DU30: 16.847 | DV30: A | DW30: 28 | DX30: 454.5288 | DY30: 177 | DZ30: 2.689 | EA30: 20.085 | EB30: A | EC30: 28 | ED30: 1898.1931 | EE30: 140.724 | EF30: 2.953 | EG30: 14.595 | EH30: A | EI30: 28 | EJ30: 1651.416 | EK30: 610.0001 | EL30: 2.801 | EM30: 17.067 | EN30: A | EP30: 28 | EQ30: 4398.5386 | ER30: 117.566 | ES30: 2.929 | ET30: 14.331
A31: 29 | B31: 373897.9375 | C31: 1203.375 | D31: 4.074 | E31: -0.286 | F31: B | G31: 29 | H31: 0 | I31: 0 | J31: 3.852 | K31: 25.338 | L31: B | M31: 29 | N31: 962.0798 | O31: 23.423 | P31: 3.867 | Q31: 22.995 | R31: AB | S31: 29 | T31: 158.6683 | U31: 60 | V31: 2.834 | W31: 22.153 | X31: B | Y31: 29 | Z31: 11028.374 | AA31: 340 | AB31: 31.264 | AC31: 19.512 | AD31: B | AE31: 29 | AF31: 1092.6848 | AG31: 41.984 | AH31: 2.982 | AI31: 21.334 | AJ31: B | AK31: 29 | AL31: 3534.7244 | AM31: 271.776 | AN31: 5.497 | AO31: 17.673 | AP31: AB | AQ31: 29 | AR31: 5043.6636 | AS31: 114.669 | AT31: 3.431 | AU31: 11.271 | AV31: B | AW31: 29 | AX31: 1330.0774 | AY31: 48.402 | AZ31: 3.486 | BA31: 20.706 | BB31: B | BC31: 29 | BD31: 4039.238 | BE31: 1400.1409 | BF31: 3.016 | BG31: 21.535 | BH31: AB | BI31: 29 | BJ31: 565.4234 | BK31: 199 | BL31: 3.057 | BM31: 21.601 | BN31: AB | BO31: 29 | BP31: 0 | BQ31: 0 | BR31: 3.36 | BS31: 21.903 | BT31: B | BU31: 29 | BV31: 4025.9573 | BW31: 431.471 | BX31: 3.268 | BY31: 19.792 | BZ31: AB | CA31: 29 | CB31: 1181.0355 | CC31: 305 | CD31: 3.974 | CE31: 17.031 | CF31: AB | CG31: 29 | CH31: 5462.3574 | CI31: 168 | CJ31: 31.353 | CK31: 21.31 | CL31: AB | CM31: 29 | CN31: 5441.1533 | CO31: 199.469 | CP31: 2.977 | CQ31: 22.139 | CR31: B | CS31: 29 | CT31: 9828.4766 | CU31: 250.283 | CV31: 3.758 | CW31: 7.243 | CX31: AB | CY31: 29 | CZ31: 18986.5566 | DA31: 665.556 | DB31: 2.777 | DC31: 7.966 | DD31: B | DE31: 29 | DF31: 28780.4727 | DG31: 877.0001 | DH31: 31.267 | DI31: 17.538 | DJ31: AB | DK31: 29 | DL31: 281.6986 | DM31: 104 | DN31: 2.841 | DO31: 22.574 | DP31: AB | DQ31: 29 | DR31: 121.1232 | DS31: 45 | DT31: 2.77 | DU31: 21.036 | DV31: AB | DW31: 29 | DX31: 348.8841 | DY31: 137 | DZ31: 2.7 | EA31: 24.248 | EB31: AB | EC31: 29 | ED31: 1588.5859 | EE31: 98.689 | EF31: 2.966 | EG31: 18.937 | EH31: AB | EI31: 29 | EJ31: 1325.9438 | EK31: 497.0001 | EL31: 2.773 | EM31: 21.458 | EN31: AB | EP31: 29 | EQ31: 4150.5737 | ER31: 112.652 | ES31: 2.961 | ET31: 17.901 | EU31: B
A32: 30 | B32: 368887.2188 | C32: 1172.713 | D32: 4.057 | E32: -0.623 | G32: 30 | H32: 0 | I32: 0 | J32: 3.842 | K32: 20.469 | M32: 30 | N32: 1003.1648 | O32: 25.14 | P32: 3.866 | Q32: 18.856 | R32: A | S32: 30 | T32: 156.7257 | U32: 60 | V32: 2.74 | W32: 18.037 | Y32: 30 | Z32: 11244.2412 | AA32: 346 | AB32: 31.369 | AC32: 18.573 | AD32: A | AE32: 30 | AF32: 1194.0007 | AG32: 51.444 | AH32: 2.966 | AI32: 18.131 | AK32: 30 | AL32: 3531.9578 | AM32: 274.829 | AN32: 5.502 | AO32: 14.998 | AP32: A | AQ32: 30 | AR32: 5340.6455 | AS32: 128.072 | AT32: 3.362 | AU32: 9.427 | AW32: 30 | AX32: 1254.3556 | AY32: 42.784 | AZ32: 3.41 | BA32: 18.111 | BC32: 30 | BD32: 3880.1165 | BE32: 1337.1458 | BF32: 2.987 | BG32: 18.332 | BH32: A | BI32: 30 | BJ32: =586.8483+1022-122 -> 1486.8483 | BK32: 208 | BL32: 2.829 | BM32: 17.414 | BN32: A | BO32: 30 | BP32: 0 | BQ32: 0 | BR32: 3.362 | BS32: 19.457 | BU32: 30 | BV32: 3887.0784 | BW32: 406.119 | BX32: 3.227 | BY32: 16.898 | BZ32: A | CA32: 30 | CB32: 1091.4989 | CC32: 283 | CD32: 3.917 | CE32: 15.905 | CF32: A | CG32: 30 | CH32: 5325.1055 | CI32: 166 | CJ32: 31.47 | CK32: 21.645 | CL32: A | CM32: 30 | CN32: 5039.3726 | CO32: 173.748 | CP32: 2.938 | CQ32: 22.287 | CS32: 30 | CT32: 11049.7402 | CU32: 602.567 | CV32: 3.748 | CW32: 7.889 | CX32: A | CY32: 30 | CZ32: 18839.5664 | DA32: 652.638 | DB32: 2.773 | DC32: 5.674 | DE32: 30 | DF32: 22755.6563 | DG32: 697.0001 | DH32: 31.384 | DI32: 17.448 | DJ32: A | DK32: 30 | DL32: 271.6255 | DM32: 102 | DN32: 2.792 | DO32: 20.381 | DP32: A | DQ32: 30 | DR32: 137.5224 | DS32: 51 | DT32: 2.767 | DU32: 18.28 | DV32: A | DW32: 30 | DX32: 394.2864 | DY32: 154 | DZ32: 2.69 | EA32: 20.937 | EB32: A | EC32: 30 | ED32: 1638.0758 | EE32: 103.316 | EF32: 2.935 | EG32: 16.269 | EH32: A | EI32: 30 | EJ32: 1441.9662 | EK32: 534.0001 | EL32: 2.791 | EM32: 18.298 | EN32: A | EP32: 30 | EQ32: 3874.9849 | ER32: 96.512 | ES32: 2.956 | ET32: 16.361
A33: 31 | B33: 457995.1563 | C33: 1794.815 | D33: 4.087 | E33: -0.403 | G33: 31 | H33: 0 | I33: 0 | J33: 3.774 | K33: 27.999 | M33: 31 | N33: 876.5269 | O33: 20.082 | P33: 3.862 | Q33: 24.956 | R33: A | S33: 31 | T33: 144.5922 | U33: 56 | V33: 2.808 | W33: 23.353 | Y33: 31 | Z33: 9982.4131 | AA33: 301 | AB33: 32.208 | AC33: 21.079 | AE33: 31 | AF33: 1088.6996 | AG33: 43.072 | AH33: 2.991 | AI33: 23.923 | AJ33: A | AK33: 31 | AL33: 3514.3994 | AM33: 263.52 | AN33: 5.418 | AO33: 18.828 | AP33: A | AQ33: 31 | AR33: 4891.8433 | AS33: 109.666 | AT33: 3.421 | AU33: 13.2 | AW33: 31 | AX33: 1228.9252 | AY33: 42.875 | AZ33: 3.436 | BA33: 22.556 | BC33: 31 | BD33: 3841.2854 | BE33: 1331.655 | BF33: 3.03 | BG33: 23.342 | BH33: A | BI33: 31 | BJ33: 915.1 | BK33: 322 | BL33: 2.993 | BM33: 23.431 | BN33: A | BO33: 31 | BP33: 0 | BQ33: 0 | BR33: 3.355 | BS33: 23.232 | BT33: A | BU33: 31 | BV33: 4297.3096 | BW33: 513.707 | BX33: 3.267 | BY33: 20.933 | BZ33: A | CA33: 31 | CB33: 1042.7246 | CC33: 273 | CD33: 3.945 | CE33: 19.982 | CF33: A | CG33: 31 | CH33: 4949.2583 | CI33: 151 | CJ33: 32.342 | CK33: 23.835 | CL33: A | CM33: 31 | CN33: =4729.686+2886 -> 7615.686 | CO33: 155.193 | CP33: 2.971 | CQ33: 24.632 | CS33: 31 | CT33: 8461.3008 | CU33: 186.424 | CV33: 3.751 | CW33: 9.907 | CX33: A | CY33: 31 | CZ33: 18524.8711 | DA33: 633.771 | DB33: 2.768 | DC33: 7.18 | DE33: 31 | DF33: 25250.4238 | DG33: 754.0001 | DH33: 32.256 | DI33: 18.762 | DJ33: A | DK33: 31 | DL33: 258.6164 | DM33: 96 | DN33: 2.849 | DO33: 25.011 | DP33: A | DQ33: 31 | DR33: 126.3525 | DS33: 47 | DT33: 2.772 | DU33: 22.601 | DV33: A | DW33: 31 | DX33: 325.979 | DY33: 128 | DZ33: 2.702 | EA33: 25.492 | EB33: A | EC33: 31 | ED33: 1554.66 | EE33: 95.262 | EF33: 2.972 | EG33: 21.13 | EH33: A | EI33: 31 | EJ33: 1252.3792 | EK33: 474.0001 | EL33: 2.76 | EM33: 23.329 | EN33: A | EP33: 31 | EQ33: 3415.509 | ER33: 71.676 | ES33: 2.966 | ET33: 20.175
A34: Итого | B34: 13035142.88 | C34: 1513.568 | D34: 4.091 | E34: -3.577 | F34: B | G34: Итого | H34: 0 | I34: 0 | J34: 3.822 | K34: 17.073 | L34: B | M34: Итого | N34: 62269.2855 | O34: 113.533 | P34: 3.869 | Q34: 14.237 | R34: AB | S34: Итого | T34: 11388.6941 | U34: 4063.0007 | V34: 2.848 | W34: 15.169 | X34: AB | Y34: Итого | Z34: 541277.9668 | AA34: 15793 | AB34: 32.457 | AC34: 15.757 | AD34: AB | AE34: Итого | AF34: 59249.7692 | AG34: 126.542 | AH34: 2.948 | AI34: 14.003 | AJ34: AB | AK34: Итого | AL34: 117929.6326 | AM34: 155.277 | AN34: 5.562 | AO34: 15.991 | AP34: AB | AQ34: Итого | AR34: 245882,7095* | AS34: 312,028* | AT34: 3,378* | AU34: 3,662* | AV34: ABC | AW34: Итого | AX34: 70970,3384* | AY34: 151,416* | AZ34: 3,407* | BA34: 12,017* | BB34: ABC | BC34: Итого | BD34: 220237,2642* | BE34: 72606.1501 | BF34: 3,046* | BG34: 12,646* | BH34: ABC | BI34: Итого | BJ34: =SUM(BJ3:BJ33) -> 52177.1281 | BK34: 17378 | BL34: 2.947 | BM34: 13.073 | BN34: AB | BO34: Итого | BP34: 3851,1377* | BQ34: 1171.0002 | BR34: 3,392* | BS34: 14,840* | BT34: ABC | BU34: Итого | BV34: 133833.3018 | BW34: 487.576 | BX34: 3.264 | BY34: 12.416 | BZ34: AB | CA34: Итого | CB34: 69100.2333 | CC34: 17818 | CD34: 3.828 | CE34: 8.058 | CF34: AB | CG34: Итого | CH34: 319758.4102 | CI34: 9255.0015 | CJ34: 32.576 | CK34: 15.623 | CL34: AB | CM34: Итого | CN34: 284912,4868* | CO34: 478,827* | CP34: 3,572* | CQ34: 13,903* | CR34: ABC | CS34: Итого | CT34: 443933,9854* | CU34: 321,824* | CV34: 3,319* | CW34: 1,315* | CX34: ABC | CY34: Итого | CZ34: 466366,3640* | DA34: 696,150* | DB34: 2,786* | DC34: 4,694* | DD34: ABC | DE34: Итого | DF34: 1154852.033 | DG34: 33379.0056 | DH34: 32.465 | DI34: 13.456 | DJ34: AB | DK34: Итого | DL34: 19287.684 | DM34: 6958 | DN34: 2.801 | DO34: 14.835 | DP34: AB | DQ34: Итого | DR34: 10582.0767 | DS34: 3403 | DT34: 3.045 | DU34: 13.317 | DV34: AB | DW34: Итого | DX34: 22695,4927* | DY34: 8735.0015 | DZ34: 2,660* | EA34: 16,730* | EB34: ABC | EC34: Итого | ED34: 92894.9598 | EE34: 346.382 | EF34: 2.983 | EG34: 9.571 | EH34: AB | EI34: Итого | EJ34: 71035.2517 | EK34: 25753.0045 | EL34: 2.761 | EM34: 12.834 | EN34: AB | EP34: Итого | EQ34: 197402,5989* | ER34: 239,629* | ES34: 2,870* | ET34: 9,799* | EU34: ABC
